Cogmind - Beta 13 @@@ ROGUE MODE // 2024.05.27 @ 21:07:24 Player: Waste Result: Destroyed by EQ-117 with Heavy Hardcell Cannon Performance ------------- Evolutions (9) 4500 Regions Visited (32) 6400 Robots Destroyed (421) 2105 Value Destroyed (26820) 26820 Prototype IDs (94) 1880 Alien Tech Used (9) 1800 Bonus (20604) 20604 TOTAL SCORE: 64109 Bonus ------- High Alert Combat Kills 2500 Follower Combat Kills 1213 Network Hubs Disabled 600 Met Data Miner 300 Met Zhirov 300 Met Warlord at Base 500 MAIN.C Attacked Warlord 500 Warlord Defense Kills 542 Built Enhanced Grunts 300 A7 Reached Mainframe 300 Met R17 at Cetus 500 Met R17 at Research 2000 Met Warlord at Research 2000 Met MAIN.C 5000 Destroyed MAIN.C Shell 5000 Friendly Fire -951 Cogmind --------- Core Integrity 0/1600 Matter 296/300 Energy 590/940 System Corruption 20% Temperature Warm (184) Movement Core (2950) Ox58 Location -1/Command Parts ------- > --- POWER (4) -------- Heavy Antimatter Reactor Vortex Chain Reactor > --- PROPULSION (6) --- (None) > --- UTILITY (12) ----- Huge Storage Unit Experimental Targeting Computer Core Analyzer Core Analyzer Centrium Medium Armor Plating Experimental Hardlight Generator > --- WEAPON (4) ------- Potential Cannon > --- INVENTORY (25) --- Singularity Reactor Experimental Energy Well (600) Experimental Energy Well (600) Experimental Energy Well (600) High-capacity Matter Pod (200) Advanced Phase Shifter Experimental Force Field Transdimensional Reconstructor Compact HERF Cannon Hellfire Missile Launcher Core Stripper Peak State ------------ > --- POWER ------------ Light Antimatter Reactor Heavy Antimatter Reactor Improved Quantum Reactor Improved Quantum Reactor > --- PROPULSION ------- Armored Heavy Treads Biometal Heavy Treads High-density Centrium Heavy Treads > --- UTILITY ---------- Huge Storage Unit Experimental Targeting Computer Core Analyzer Core Analyzer Advanced Weapon Cycler Advanced Phase Shifter Centrium Heavy Armor Plating Heavy Regenerative Plating Thermal Barrier Experimental Force Field > --- WEAPON ----------- Long-range Phase Cannon Enhanced Nova Cannon Cooled Nova Cannon Cooled Nova Cannon > --- INVENTORY -------- Vortex Chain Reactor Singularity Reactor Biometal Heavy Treads Experimental Energy Well Experimental Energy Well Experimental Energy Well High-capacity Matter Pod Advanced Phase Shifter Heavy Regenerative Plating Experimental EM Disruption Field Experimental Hardlight Generator Long-range Tractor Beam Transdimensional Reconstructor Compact HERF Cannon Potential Cannon Hypervelocity Railgun Hellfire Missile Launcher Core Stripper [Rating: 241] Favorites ----------- Power Improved Quantum Reactor Engine Cooled Ion Engine Power Core Reinforced Fission Core Reactor Improved Quantum Reactor Propulsion Improved Heavy Treads Treads Improved Heavy Treads Leg Flexi-carbon Leg Wheel Armored Wheel Utility Huge Storage Unit Device Experimental Sensor Array Storage Huge Storage Unit Processor Experimental Targeting Computer Hackware Improved Hacking Suite Protection Centrium Medium Armor Plating Artifact Spacefold Activator Weapon Advanced KE Penetrator Energy Gun Advanced Variable Charge Gun Energy Cannon Cooled Nova Cannon Ballistic Gun Advanced KE Penetrator Ballistic Cannon Flak Cannon Launcher Heavy Rocket Launcher Impact Weapon Gravity Flail Build | -11 -10 -10 -9 -9 -8 -7 -7 -7 -7 -6 -6 -6 -6 -6 -6 -5 -5 -5 -5 -4 -4 -4 -4 -4 -3 -3 -3 -2 -2 -2 -1 -1 ------- Run | Yrd Mat Min Mat Min Mat Fac Low Low Dat Pro Fac Ext Cet Arc Hub Fac Upp Upp War Pro Fac Upp Upp Zhi Pro Res Tes Res Qua Sec Acc Com Slots Evolved 18 | . . . 2 . 2 2 . . . . 2 . . . . 2 . . . . 2 . . . . 2 . 2 . . 2 . Power 3 | . . . . . . . . . . . . . . . . . . . . . 1 . . . . . . 1 . . 1 . Propulsion 4 | . . . . . 1 1 . . . . . . . . . 2 . . . . . . . . . . . . . . . . Utility 9 | . . . 2 . . 1 . . . . 2 . . . . . . . . . 1 . . . . 2 . 1 . . . . Weapon 2 | . . . . . 1 . . . . . . . . . . . . . . . . . . . . . . . . . 1 . Parts Attached 738 | . 1 5 16 2 33 31 13 19 4 17 28 18 3 18 72 26 8 7 23 17 75 5 22 5 5 3 78 13 36 83 21 31 Power 29 | . . 1 3 . 1 1 . . . 1 . 1 . 1 3 . . . . . 5 . . 1 . . 5 1 . 2 1 2 Engine 9 | . . 1 3 . 1 1 . . . 1 . 1 . . 1 . . . . . . . . . . . . . . . . . Core 6 | . . . . . . . . . . . . . . 1 1 . . . . . 3 . . . . . 1 . . . . . Reactor 14 | . . . . . . . . . . . . . . . 1 . . . . . 2 . . 1 . . 4 1 . 2 1 2 Propulsion 69 | . 1 . 5 . 6 2 . . . 4 6 1 1 1 3 3 . 3 8 3 7 . . . . . 2 . 9 1 1 2 Treads 44 | . . . 3 . 3 . . . . 4 3 1 1 1 3 2 . 3 . . 5 . . . . . 2 . 9 1 1 2 Leg 14 | . 1 . . . . . . . . . . . . . . . . . 8 3 2 . . . . . . . . . . . Wheel 11 | . . . 2 . 3 2 . . . . 3 . . . . 1 . . . . . . . . . . . . . . . . Hover . | . . . . . . . . . . . . . . . . . . . . . . . . . . . . . . . . . Flight . | . . . . . . . . . . . . . . . . . . . . . . . . . . . . . . . . . Utility 443 | . . 1 6 2 11 19 6 10 1 8 19 12 1 13 54 20 6 2 9 7 52 4 13 4 3 3 32 7 20 58 18 22 Device 335 | . . 1 4 2 7 9 3 8 . 5 14 11 . 10 50 18 4 2 7 4 42 2 12 3 3 2 22 7 13 41 14 15 Storage 11 | . . . 1 . 1 . . . . . 1 . . . . . . . . . 2 . . . . . 5 . 1 . . . Processor 19 | . . . . . 1 3 . . . . 2 . . . . . . . 1 . 2 1 . . . 1 2 . . 3 3 . Hackware 5 | . . . . . . 1 . . . . 1 . . . . . 1 . . . . 1 1 . . . . . . . . . Protection 70 | . . . 1 . 2 6 3 2 1 3 1 1 1 3 4 2 1 . 1 3 6 . . 1 . . 3 . 6 12 1 6 Artifact 3 | . . . . . . . . . . . . . . . . . . . . . . . . . . . . . . 2 . 1 Weapon 197 | . . 3 2 . 15 9 7 9 3 4 3 4 1 3 12 3 2 2 6 7 11 1 9 . 2 . 39 5 7 22 1 5 Energy Gun 18 | . . 2 . . . . . . . . . 1 . 1 4 1 . 1 1 1 . . 1 . . . 5 . . . . . Energy Cannon 45 | . . . 2 . 1 . . . . . . . . . . . . . . . 3 1 . . 1 . 15 2 1 15 1 3 Ballistic Gun 66 | . . . . . 12 5 3 1 1 1 1 1 1 2 2 1 1 1 3 3 3 . 5 . . . 8 2 4 3 . 2 Ballistic Cannon 25 | . . . . . . . . 1 1 1 1 2 . . 6 . . . 1 . 1 . . . . . 6 . 1 4 . . Launcher 28 | . . 1 . . 2 2 4 3 1 2 . . . . . 1 1 . 1 3 1 . 2 . . . 3 1 . . . . Special Weapon . | . . . . . . . . . . . . . . . . . . . . . . . . . . . . . . . . . Impact Weapon 15 | . . . . . . 2 . 4 . . 1 . . . . . . . . . 3 . 1 . 1 . 2 . 1 . . . Slashing Weapon . | . . . . . . . . . . . . . . . . . . . . . . . . . . . . . . . . . Piercing Weapon . | . . . . . . . . . . . . . . . . . . . . . . . . . . . . . . . . . Special Melee Weapon . | . . . . . . . . . . . . . . . . . . . . . . . . . . . . . . . . . Unidentified Prototypes 55 | . . . 2 1 3 . . 1 . . . . 3 2 3 1 . . 4 . 3 . . 2 . . 16 1 7 6 . . Corrupted Parts 12 | . . . . . . . . . . . . . 2 1 . . . . . 2 . . . . . . 4 . . 3 . . System Corruption 81 | . . . . . . . . . . . . . 10 9 . . . . . 19 . . . . . . 31 . . 12 . . Parts Lost 66 | . . 3 2 . . . . 2 . 4 1 . . . 10 3 1 . 4 7 3 . . . . . 2 1 . 2 . 21 Power 8 | . . 1 . . . . . . . 1 . . . . 1 . . . . . 1 . . . . . 1 . . . . 3 Propulsion 17 | . . . 1 . . . . . . 1 1 . . . 2 1 . . 4 3 . . . . . . . . . . . 4 Utility 27 | . . . 1 . . . . . . . . . . . 5 2 1 . . 3 2 . . . . . 1 1 . 2 . 9 Weapon 14 | . . 2 . . . . . 2 . 2 . . . . 2 . . . . 1 . . . . . . . . . . . 5 Highest Loss Streak 11 | . . 2 1 . . . . 2 . 4 1 . . . 5 2 1 . 4 7 3 . . . . . 1 1 . 1 . 11 To Critical Strikes 3 | . . . . . . . . . . . . . . . . . . . 1 . . . . . . . . . . . . 2 Average Slot Usage (%) 86 | . 85 73 90 100 99 93 92 91 79 99 92 95 88 83 87 92 93 88 90 94 81 75 79 74 75 77 78 81 81 81 80 80 Engine 2 | . 14 5 10 11 9 7 7 7 7 7 6 6 6 5 . . . . . . . . . . . . . . . . . . Core 1 | . . . . . . . . . . . . . . . 5 . . . . . 4 5 5 5 5 4 3 . . . . . Reactor 4 | . . . . . . . . . . . . . . . . 5 5 5 5 5 5 5 5 5 5 4 4 10 12 12 12 14 Treads 12 | . . . 12 22 7 . . . . 27 4 16 13 12 13 25 22 23 23 . 12 15 15 15 15 13 13 12 11 12 11 10 Leg 2 | . 28 28 2 . . . . . . . . . . . . . . . 2 29 4 . . . . . . . . . . . Wheel 4 | . . . 6 . 19 24 23 22 21 . 12 4 . . . . 5 3 . . . . . . . . . . . . . . Device 12 | . . 5 17 22 17 10 6 7 13 7 10 6 6 7 10 16 17 16 15 13 9 10 9 9 9 14 13 16 15 17 14 13 Storage 5 | . 14 14 11 11 9 7 7 7 7 7 6 6 6 6 6 5 5 5 5 5 5 5 5 5 5 4 4 4 4 4 3 3 Processor 12 | . . . . . . 11 15 14 14 14 23 25 25 25 24 9 5 5 8 11 13 15 15 15 15 16 15 12 12 10 15 13 Hackware 4 | . . . . . . 5 7 7 7 7 6 6 6 6 6 5 8 5 5 5 5 5 5 5 5 4 4 4 4 4 3 1 Protection 5 | . . . 6 11 9 . . . . 6 2 6 6 1 1 5 4 5 4 5 7 5 5 5 5 4 5 8 7 7 3 5 Energy Gun 1 | . 14 11 5 . . . . . . . . 2 4 3 2 9 11 11 7 3 1 . . . . . . . . . . . Energy Cannon 3 | . . . 16 22 . . . . . . . . . . . . . . . . 5 2 4 . . . 2 1 3 5 10 13 Ballistic Gun 7 | . 14 . . . 26 21 22 8 . . 8 10 1 8 10 5 4 . 3 10 5 2 8 . . . 3 10 8 2 3 1 Ballistic Cannon 2 | . . . . . . . . 5 . 13 6 5 12 5 4 . . . . . 1 . . . . . 1 . . 3 . . Launcher 1 | . . 8 . . . . . 2 . 6 1 . . . . . . 5 3 2 . 5 . 5 5 4 . . . . . . Naked Turns . | . . . . . . . . . . . . . . . . . . . . . . . . . . . . . . . . . Heaviest Build 254 | 11 11 14 41 41 107 108 111 111 115 135 115 124 125 125 136 133 136 136 135 143 168 157 167 150 149 145 187 199 203 223 224 254 Greatest Support 250 | 20 20 20 40 40 60 52 52 52 52 94 52 115 150 150 140 179 151 179 179 145 225 225 225 225 225 225 230 230 250 250 230 240 Greatest Overweight (x) 8 | . . . 4 1 8 2 2 2 2 1 4 4 1 . 1 . . . 4 1 1 . . . . . . . 1 . . 2 Average Overweight (x) . | . . . . . 1 1 1 1 1 1 3 1 . . . . . . . . . . . . . . . . . . . . Largest Inventory Capacity 25 | . 8 8 15 15 25 25 25 25 25 25 25 25 25 25 25 25 25 25 25 25 25 25 25 25 25 25 25 25 25 25 25 25 Average Capacity 23 | . 8 8 13 15 23 25 25 25 25 25 25 25 25 25 25 25 25 25 25 25 25 25 25 25 25 25 25 25 25 25 25 25 Most Carried 25 | . 8 8 15 15 25 25 25 25 24 24 25 25 25 25 25 25 25 25 25 25 25 25 25 25 25 25 25 24 25 25 25 25 Average Carried 23 | . 6 7 13 14 23 24 24 24 24 21 24 24 24 24 24 24 24 24 24 22 24 24 24 25 25 24 24 23 24 24 24 24 Final Capacity 25 | 8 8 8 15 15 25 25 25 25 25 25 25 25 25 25 25 25 25 25 25 25 25 25 25 25 25 25 25 25 25 25 25 25 Final Carried 25 | 6 8 7 15 15 25 25 25 24 24 24 25 25 25 25 23 25 25 25 25 21 25 25 25 25 25 25 25 23 25 25 25 14 Class Distribution -------------------- 25% | Scavenger-Skirmisher 18% | Skirmisher 11% | Scavenger-Tank 11% | Mutant 6% | Generator-Gunner 6% | Assassin 5% | Tank 4% | Gunner 3% | Scavenger-Gunner Dominant Class ---------------- Mutant | -10/Materials Mutant | -10/Mines Mutant | -9/Materials Mutant | -9/Mines Scavenger-Tank | -8/Materials Skirmisher | -7/Factory Skirmisher | -7/Lower Caves Mutant | -7/Lower Caves Mutant | -7/Data Miner Skirmisher | -6/Proximity Caves Skirmisher | -6/Factory Skirmisher | -6/Extension Commander-Gunner | -6/Cetus Scavenger-Gunner | -6/Archives Scavenger-Skirmisher | -6/Hub_04(d) Scavenger-Tank | -5/Factory Scavenger-Skirmisher | -5/Upper Caves Scavenger-Skirmisher | -5/Upper Caves Scavenger-Skirmisher | -5/Warlord Scavenger-Skirmisher | -4/Proximity Caves Scavenger-Skirmisher | -4/Factory Scavenger-Skirmisher | -4/Upper Caves Scavenger-Skirmisher | -4/Upper Caves Assassin | -4/Zhirov Assassin | -3/Proximity Caves Assassin | -3/Research Tank | -3/Testing Scavenger-Skirmisher | -2/Research Scavenger-Skirmisher | -2/Quarantine Scavenger-Tank | -2/Section 7 Generator-Skirmisher | -1/Access Generator-Gunner | -1/Command Resources | -11 -10 -10 -9 -9 -8 -7 -7 -7 -7 -6 -6 -6 -6 -6 -6 -5 -5 -5 -5 -4 -4 -4 -4 -4 -3 -3 -3 -2 -2 -2 -1 -1 ----------- Run | Yrd Mat Min Mat Min Mat Fac Low Low Dat Pro Fac Ext Cet Arc Hub Fac Upp Upp War Pro Fac Upp Upp Zhi Pro Res Tes Res Qua Sec Acc Com Matter Collected 17244 | 192 97 85 188 42 1521 517 406 712 . 450 584 713 78 629 2239 444 108 90 396 484 1046 277 420 70 77 84 1603 237 497 1872 586 500 Remotely 4588 | . . . . . . . . 355 . 185 229 238 . 249 951 218 . . 42 . 111 . 115 . . . 497 73 18 809 337 161 Salvage Created 22677 | . 286 82 677 170 1746 609 143 110 . 150 584 906 187 597 3373 966 117 . 244 705 1552 61 213 293 60 . 1383 . 731 2617 1057 3058 Parts 1070 | . 10 7 36 8 101 45 10 5 . 5 27 42 10 32 184 43 11 . 6 17 53 1 12 1 2 . 67 . 26 129 65 115 Haulers Intercepted 11 | . . . 4 . 5 . . . . . . . . . . . . . . . 1 . . . . . . . . 1 . . Recyclers Shooed 13 | . 1 . . 2 1 1 . . . . 1 3 . . . 1 . . . . 1 . . . . . 1 . . . 1 . Parts Field Recycled . | . . . . . . . . . . . . . . . . . . . . . . . . . . . . . . . . . Retrieved Matter . | . . . . . . . . . . . . . . . . . . . . . . . . . . . . . . . . . Parts Self-Destructed 63 | . . . . . . . 7 5 . 3 . . . . . . 13 6 . 17 . 1 9 . 2 . . . . . . . Prevented 9 | . . . . . . . . 1 . . . . . . . . 3 2 . . . . . 1 2 . . . . . . . Kills | -11 -10 -10 -9 -9 -8 -7 -7 -7 -7 -6 -6 -6 -6 -6 -6 -5 -5 -5 -5 -4 -4 -4 -4 -4 -3 -3 -3 -2 -2 -2 -1 -1 ------- Run | Yrd Mat Min Mat Min Mat Fac Low Low Dat Pro Fac Ext Cet Arc Hub Fac Upp Upp War Pro Fac Upp Upp Zhi Pro Res Tes Res Qua Sec Acc Com Combat Hostiles Destroyed 328 | . 4 4 8 4 23 13 7 2 . 5 13 14 3 3 50 14 2 . 4 15 20 . 7 . 2 . 23 . 6 36 16 30 Melee 2 | . . . . . . . . . . . . . . . 1 . . . . . 1 . . . . . . . . . . . Guns 132 | . 4 1 1 . 20 10 2 1 . . 11 8 . . 25 14 2 . 4 6 4 . 2 . . . 6 . 2 2 7 . Cannons 115 | . . . 6 3 . . . . . 2 2 6 3 3 20 . . . . . 6 . . . . . 12 . 3 22 9 18 AOE 36 | . . 3 1 . 3 3 5 . . 3 . . . . 3 . . . . 9 . . 5 . 1 . . . . . . . Classes Destroyed 25 | . 3 . 4 1 2 2 . 1 . 1 . 1 . . 5 . . . 1 . . . . . 1 . 1 . 1 . . 1 Worker 25 | . 1 1 2 . 5 2 . . . . . . . . 9 1 . . . . . . . . . . 2 . . . . 2 Builder 13 | . . . . 1 5 . . . . . . . . . 1 2 . . . . 2 . . . . . 2 . . . . . Hauler 11 | . . . 4 . 5 . . . . . . . . . . . . . . . 1 . . . . . . . . 1 . . Recycler 6 | . 1 . . . 2 . . . . . . 1 . . . . . . . . 2 . . . . . . . . . . . Carrier 1 | . . . . . . . . . . . . . . . 1 . . . . . . . . . . . . . . . . . Minesweeper 1 | . . . . . . . . 1 . . . . . . . . . . . . . . . . . . . . . . . . Operator 12 | . . . . . . 1 . . . . . . . 9 2 . . . . . . . . . . . . . . . . . Drone 1 | . . . . . . . . . . . . . . . . . . . . . . . . . 1 . . . . . . . Watcher 22 | . . . 2 . 2 2 . . . . . 3 . . 5 . . . . . 1 . . . . . 3 . . 1 2 1 Swarmer 33 | . . . 1 . 3 5 5 . . . . 2 . . . . . . . 1 . . 5 . . . 4 . . . 7 . Saboteur 3 | . . . . . . . . . . . . . . . 3 . . . . . . . . . . . . . . . . . Grunt 118 | . 4 4 5 4 12 3 1 2 . 3 10 4 . . 23 8 . . 2 9 9 . . . 1 . 8 . . 4 . 2 Brawler 14 | . . . . . 2 . . . . . . . . . 4 2 . . 1 3 . . . . . . . . . . 1 1 Duelist 4 | . . . . . . . . . . 1 . . . . . 1 . . . 1 . . . . . . . . . 1 . . Protector 1 | . . . . . . . . . . . . . . . 1 . . . . . . . . . . . . . . . . . Sentry 37 | . . . 3 . 5 1 1 . . . . 7 . 3 7 1 . . . 1 2 . . . . . . . . 5 1 . Demolisher 1 | . . . . . . . . . . . . . . . . . . . 1 . . . . . . . . . . . . . Specialist 4 | . . . . . . . . . . . . . . . 4 . . . . . . . . . . . . . . . . . Hunter 18 | . . . . . 1 . . . . 1 . . . . 2 . 2 . . . . . 2 . . . . . . 4 2 4 Programmer 61 | . . . . . . 4 . . . . 3 . . . 2 2 . . . . 8 . . . . . 10 . 5 18 5 4 Heavy 2 | . . . . . . . . . . . . . . . 1 . . . . . 1 . . . . . . . . . . . Behemoth 2 | . . . . . . . . . . . . 1 . . . . . . . . . . . . . . . . . 1 . . Cetus Guard 3 | . . . . . . . . . . . . . 3 . . . . . . . . . . . . . . . . . . . S7 Guard 3 | . . . . . . . . . . . . . . . . . . . . . . . . . . . . . . 3 . . Enhanced Grunt 1 | . . . . . . . . . . . . . . 1 . . . . . . . . . . . . . . . . . . Enhanced Q-Series 18 | . . . . . . . . . . . . . . . . . . . . . . . . . . . . . . . . 18 Lightning 3 | . . . . . . . . . . . . . . . 3 . . . . . . . . . . . . . . . . . Alpha 7 1 | . . . . . . . . . . . . . . . . . . . . . . . . . . . 1 . . . . . Fortress 1 | . . . . . . . . . . . . . . . . . . . . . . . . . . . . . 1 . . . Decomposer 2 | . . . . . . . 2 . . . . . . . . . . . . . . . . . . . . . . . . . Best Kill Streak 10 | . 3 3 4 2 4 4 4 1 . 4 5 5 3 4 10 5 2 . 2 7 3 . 5 . 2 . 7 . 2 7 5 5 Combat Bots Only 7 | . 2 2 2 2 3 4 4 1 . 4 5 4 3 2 7 4 2 . 2 7 3 . 5 . 2 . 6 . 2 7 5 5 Max Kills in Single Turn 6 | . 1 2 2 1 3 3 2 1 . 1 2 2 1 1 6 2 1 . 1 3 1 . 5 . 1 . 1 . 1 1 1 2 Gunslinging 1 | . . . . . . 1 . . . . . . . . 1 1 . . . . . . . . . . . . . . . . Exploded 5 | . . 1 1 . 3 3 2 . . 1 . . . . 2 . . . . 3 . . 5 . 1 . . . . . . . Melee 1 | . . . . . . . . . . . . . . . 1 . . . . . 1 . . . . . . . . . . . Uniques/NPCs Destroyed 1 | . . . . . . . . . . . . . . . . . . . . . . . . . . . . . . . . 1 MAIN.C Shell (-1/Command) Combat | -11 -10 -10 -9 -9 -8 -7 -7 -7 -7 -6 -6 -6 -6 -6 -6 -5 -5 -5 -5 -4 -4 -4 -4 -4 -3 -3 -3 -2 -2 -2 -1 -1 -------- Run | Yrd Mat Min Mat Min Mat Fac Low Low Dat Pro Fac Ext Cet Arc Hub Fac Upp Upp War Pro Fac Upp Upp Zhi Pro Res Tes Res Qua Sec Acc Com Hostile Shots Fired 2260 | . 27 16 19 11 70 72 37 27 . 23 52 75 . 1 289 77 24 . 72 104 110 . 33 . 8 . 173 10 36 282 124 488 Missed 476 | . 9 6 7 3 15 26 9 7 . 6 15 21 . 1 55 18 5 . 15 19 20 . 7 . 4 . 21 2 6 48 22 109 Damage Taken 30890 | . 224 307 198 101 825 600 364 369 . 393 645 770 . 28 3238 623 266 . 1252 2304 2139 . 217 . 161 22 2069 184 341 1890 970 10390 Core 3288 | . 44 77 40 13 96 100 87 24 . . 186 24 . . 227 51 . . 30 258 118 . . . 21 . 167 . 6 51 10 1658 Absorbed by Shields 7872 | . . . . . . . . . . . 15 224 . . 252 182 99 . 319 134 414 . 123 . . . 628 60 50 1688 1022 2662 Reduced by Siege Mode 1670 | . . . . . . . . . . . . 25 . . 352 16 13 . 8 . 86 . 10 . . . 194 . 35 234 104 593 Ignored by Resistances 7177 | . . . . . . . . . . 35 . . . . 617 409 . . . 94 356 . 66 . . . 693 15 421 2299 528 1644 Regen/Repaired (Parts) 5674 | . . . . . 11 97 . . . . . . . . . . . . 806 . 1140 . . . . . . . 525 2142 547 406 Core Remaining (%) 75 | 100 . 51 . 86 82 . . . . 69 . . . . 48 . . . . 66 . . . . 87 . 87 . . 81 . . Volleys Fired 1093 | . 27 10 40 9 89 37 13 14 . 15 27 44 8 25 117 48 5 11 18 33 50 11 12 . 5 . 120 11 20 116 63 95 Largest 4 | . 2 2 2 2 3 3 3 3 . 3 3 3 2 3 3 3 3 1 3 3 3 1 3 . 1 . 3 3 3 3 4 4 Hottest 525 | . 60 80 136 136 75 75 75 75 . 127 116 138 114 194 240 196 196 80 151 283 230 90 160 . 90 . 258 150 120 240 315 525 Shots Fired 2562 | . 54 12 75 18 265 106 23 26 . 20 81 112 15 74 322 116 14 11 52 70 124 13 22 . 4 . 180 15 46 218 120 354 Gun 1394 | . 54 4 29 . 264 104 16 19 . . 52 87 1 37 229 116 14 11 38 64 49 3 10 . . . 67 6 26 27 44 23 Cannon 1118 | . . . 46 18 . . . . . 6 29 25 14 37 93 . . . 14 . 75 10 11 . 2 . 113 7 20 191 76 331 Launcher 50 | . . 8 . . 1 2 7 7 . 14 . . . . . . . . . 6 . . 1 . 2 . . 2 . . . . Special . | . . . . . . . . . . . . . . . . . . . . . . . . . . . . . . . . . Kinetic 1436 | . 27 . . . 264 104 16 19 . 6 81 102 14 67 286 41 5 . 48 35 71 3 10 . . . 63 6 26 75 44 23 Thermal 1001 | . 27 2 58 18 . . . . . . . 10 1 7 36 75 9 11 4 29 53 10 11 . 2 . 96 7 20 108 76 331 Explosive 50 | . . 8 . . 1 2 7 7 . 14 . . . . . . . . . 6 . . 1 . 2 . . 2 . . . . Electromagnetic 75 | . . 2 17 . . . . . . . . . . . . . . . . . . . . . . . 21 . . 35 . . Robot Hit Streak 85 | . 10 6 8 13 18 9 8 10 . 12 12 21 6 14 21 24 34 . 38 13 26 4 10 . 5 . 70 6 17 30 17 85 Robot Miss Streak 6 | . 3 1 6 1 4 3 1 1 . 4 5 3 3 3 3 3 . . 4 1 2 1 1 . . . 2 1 1 2 2 4 Penetration Max 1 | . . . . . . . . . . . 1 1 1 1 1 1 . . 1 1 1 . . . . . 1 . . 1 1 1 Secondary Targets 15 | . . . . . 2 2 . 1 . . . 2 . . 2 3 1 . . 2 . . . . . . . . . . . . Max Gunslinging Chain 1 | . . . . . 1 1 . 1 . . . 1 . . 1 1 1 . . 1 . . . . . . . . . . . . Shots Hit Robots 1751 | . 39 10 42 15 157 69 14 17 . 9 58 95 9 49 185 87 12 . 40 46 110 4 10 4 4 . 132 5 33 155 74 267 Core Hits 840 | . 12 11 21 7 66 28 13 5 . 15 55 72 3 24 116 35 5 . 28 44 25 1 9 1 . . 49 4 9 47 37 98 Critical Kills 86 | . . . . 1 1 . . . . . . 4 3 10 27 3 . . 3 1 3 . 1 . . . 4 . 1 3 8 13 Critical Parts Destroyed 76 | . . . . . 1 . . . . . 1 . 4 4 27 6 . . 3 1 9 . . 2 . . 2 1 5 2 6 2 Critical Strikes 196 | . . . . 1 2 . . . . . 1 4 8 17 57 10 . . 6 2 14 . 1 2 . . 18 1 6 17 14 15 Burn 4 | . . . . . . . . . . . . . . . 2 1 . . . . . . . . . . 1 . . . . . Meltdown 16 | . . . . 1 . . . . . . . . . . . . . . . . . . . . . . . . . 3 . 12 Destroy 143 | . . . . . 2 . . . . . 1 4 8 17 55 9 . . 6 2 6 . 1 . . . 6 1 6 2 14 3 Blast 8 | . . . . . . . . . . . . . . . . . . . . . 2 . . . . . 4 . . 2 . . Corrupt 17 | . . . . . . . . . . . . . . . . . . . . . . . . . . . 7 . . 10 . . Smash 8 | . . . . . . . . . . . . . . . . . . . . . 6 . . 2 . . . . . . . . Melee Attacks 82 | . . . . . . 7 . 17 . . 4 . . . . . . . . . 40 . . 4 4 . 3 . 3 . . . Kinetic 3 | . . . . . . . . . . . . . . . . . . . . . . . . . . . . . 3 . . . Impact 79 | . . . . . . 7 . 17 . . 4 . . . . . . . . . 40 . . 4 4 . 3 . . . . . Slashing . | . . . . . . . . . . . . . . . . . . . . . . . . . . . . . . . . . Piercing . | . . . . . . . . . . . . . . . . . . . . . . . . . . . . . . . . . Sneak Attacks 3 | . . . . . . . . 1 . . 2 . . . . . . . . . . . . . . . . . . . . . Combat Hostiles . | . . . . . . . . . . . . . . . . . . . . . . . . . . . . . . . . . Follow-up Attacks . | . . . . . . . . . . . . . . . . . . . . . . . . . . . . . . . . . Damage Inflicted 63505 | . 515 499 826 358 2934 1518 733 444 . 726 1653 2446 281 1221 6608 2489 282 . 1320 2949 4637 142 662 655 282 21 5062 208 1319 7361 2127 13227 Guns 22418 | . 514 37 233 . 2769 1285 187 257 . . 965 1782 12 739 4087 2453 282 . 955 1343 1035 . 118 . . . 1641 134 644 515 333 98 Cannons 31253 | . . . 490 317 . . . . . 79 487 645 269 482 1071 . . . 365 . 1979 142 102 . . . 3405 . 576 6790 1785 12269 Explosions 6626 | . . 455 100 . 156 233 546 . . 647 . . . . 1411 . . . . 1606 . . 442 . 147 . . 74 . . . 809 Melee 2836 | . . . . . . . . 187 . . 187 . . . . . . . . . 1573 . . 655 135 . . . 99 . . . Ramming 372 | . 1 7 3 41 9 . . . . . 14 19 . . 39 36 . . . . 50 . . . . 21 16 . . 56 9 51 Kinetic 24828 | . 298 . . . 2769 1285 187 257 . 79 1452 2184 269 1045 4566 979 82 . 1240 729 1787 . 118 . . . 2020 134 743 2174 333 98 Thermal 27212 | . 216 12 682 317 . . . . . . . 243 12 176 592 1474 200 . 80 614 1227 142 102 . . . 1750 . 576 3934 1785 13078 Explosive 4306 | . . 455 . . 156 233 546 . . 647 . . . . . . . . . 1606 . . 442 . 147 . . 74 . . . . Electromagnetic 4050 | . . 25 141 . . . . . . . . . . . 1411 . . . . . . . . . . . 1276 . . 1197 . . Impact 2737 | . . . . . . . . 187 . . 187 . . . . . . . . . 1573 . . 655 135 . . . . . . . Slashing . | . . . . . . . . . . . . . . . . . . . . . . . . . . . . . . . . . Piercing . | . . . . . . . . . . . . . . . . . . . . . . . . . . . . . . . . . Highest Corruption 48 | . . . 3 3 . 1 1 1 1 1 . . 10 10 22 7 5 . 1 30 6 6 6 6 6 . 48 . 4 14 4 20 Average Corruption 4 | . . . 3 3 . 1 1 1 1 1 . . 5 6 4 5 3 . 1 6 2 6 6 6 6 . 6 . 3 4 3 8 Corruption Purged 30 | . . . . . . . . . . . . . . 19 . 2 5 . . . . . . . . . . . . 4 . . Corruption Blocked 31 | . . . . . . . . . . . . . . . . . . . . . . . . . . . . 31 . . . . Effects 434 | . . . 1 15 . 8 5 14 1 12 . . 6 18 32 8 2 . 2 21 31 27 25 5 18 . 44 . 21 47 4 67 Message Errors 107 | . . . . 2 . 1 2 3 . 4 . . 1 8 10 . . . . 5 9 6 10 3 4 . 7 . 3 10 1 18 Matter Fused 99 | . . . 1 3 . 3 2 5 1 3 . . 1 2 6 3 . . . 5 6 7 2 . 5 . 12 . 6 14 . 12 Heat Flow Errors 51 | . . . . 3 . 2 . 1 . 1 . . 2 . 1 1 . . . 3 4 3 5 . 2 . 3 . 4 7 1 8 Energy Discharges 52 | . . . . 1 . 1 1 . . 3 . . . 1 4 . 1 . . 3 4 3 2 . 1 . 7 . 4 6 1 9 Parts Rejected 4 | . . . . . . . . . . . . . . . . . . . . . . . . . . . . . 1 2 . 1 Parts Fused 4 | . . . . 1 . . . . . . . . . . 1 . . . . . . . 1 . 1 . . . . . . . Data Loss (minor) 53 | . . . . 5 . . . 2 . 1 . . 1 1 5 1 . . 2 2 5 5 2 2 2 . 5 . 3 3 . 6 Data Loss (major) 20 | . . . . . . . . 1 . . . . 1 2 2 1 . . . 1 2 1 . . 1 . 4 . . 2 . 2 Misfires 20 | . . . . . . 1 . 2 . . . . . 2 2 1 . . . 1 1 2 2 . . . 1 . . 2 . 3 Alerts 4 | . . . . . . . . . . . . . . . . . . . . 1 . . 1 . 1 . . . . . 1 . Misdirections 1 | . . . . . . . . . . . . . . . . . . . . . . . . . . . . . . 1 . . Weapon Failures 19 | . . . . . . . . . . . . . . 2 1 1 1 . . . . . . . 1 . 5 . . . . 8 Overload Shots 55 | . . . . . . . . . . . . . . . 1 . . . . 1 . . . . . . . 2 . 6 . 45 Effects 8 | . . . . . . . . . . . . . . . . . . . . 1 . . . . . . . . . 2 . 5 Energy Bleed 7 | . . . . . . . . . . . . . . . . . . . . 1 . . . . . . . . . 2 . 4 Heat Surge 1 | . . . . . . . . . . . . . . . . . . . . . . . . . . . . . . . . 1 Overflow Damage 2132 | . . 19 12 . 15 63 27 16 . 58 19 . . 9 117 . . . . 8 760 12 . 242 101 6 187 . 6 193 57 205 Projectiles 776 | . . . 12 . . . . . . . . . . 9 . . . . . . 137 12 . . . . 187 . 6 193 57 163 Explosions 426 | . . 19 . . 15 63 27 . . 58 . . . . 117 . . . . 8 . . . . 77 . . . . . . 42 Melee 930 | . . . . . . . . 16 . . 19 . . . . . . . . . 623 . . 242 24 6 . . . . . . Knockbacks 88 | . . . . 1 . . . . . 2 14 5 1 4 7 1 . . 2 . 22 . . 2 1 . 19 . . 7 . . Impact 21 | . . . . 1 . . . . . . 3 1 . . . 1 . . . . 13 . . 1 1 . . . . . . . Kinetic 58 | . . . . . . . . . . 2 11 3 1 4 7 . . . 2 . 6 . . . . . 16 . . 6 . . Secondary 9 | . . . . . . . . . . . . 1 . . . . . . . . 3 . . 1 . . 3 . . 1 . . Self-Inflicted Damage 884 | . . 130 35 . 3 24 46 40 . 115 . . . . 211 . . . . 207 . . . . 73 . . . . . . . Shots 25 | . . 8 1 . . 1 1 2 . 3 . . . . 3 . . . . 4 . . . . 2 . . . . . . . Rammed 29 | . . . 1 7 2 . . . . . 1 2 . . 3 3 . . . . 2 . . . . 1 1 . . 3 2 1 Targets Rammed 32 | . 1 1 1 7 2 . . . . . 1 2 . . 3 3 . . . . 3 . . . . 1 1 . . 3 2 1 Kicked 2 | . 1 1 . . . . . . . . . . . . . . . . . . . . . . . . . . . . . . Crushed 1 | . . . . . . . . . . . . . . . . . . . . . 1 . . . . . . . . . . . Highest Temperature 407 | . 66 15 186 175 63 354 99 231 . 116 79 303 107 126 262 255 132 192 176 358 407 288 348 . 138 . 321 108 272 214 178 178 Average Temperature 94 | . 36 9 64 78 16 113 42 105 . 35 30 84 71 28 86 81 57 93 64 166 124 103 121 . 51 . 86 63 132 63 107 136 Received Heat Transfer 5989 | . 126 78 84 57 468 54 84 180 . 99 283 467 . . 564 218 . . 160 282 146 . . . 24 . 38 35 14 319 16 2193 Effects 17 | . . . . . . 3 . . . . . . . . . 1 . . . 5 4 . 3 . . . 1 . . . . . Shutdowns 3 | . . . . . . . . . . . . . . . . . . . . 1 . . 2 . . . . . . . . . Energy Bleed 3 | . . . . . . . . . . . . . . . . . . . . 1 1 . 1 . . . . . . . . . Interference 5 | . . . . . . 2 . . . . . . . . . 1 . . . . 2 . . . . . . . . . . . Matter Decay 2 | . . . . . . . . . . . . . . . . . . . . 1 1 . . . . . . . . . . . Short Circuit 2 | . . . . . . . . . . . . . . . . . . . . 2 . . . . . . . . . . . . Damage (minor) 2 | . . . . . . 1 . . . . . . . . . . . . . . . . . . . . 1 . . . . . Siege Activations 101 | . . . . . . . . . . . . 2 1 3 20 6 1 . 1 . 8 . 1 . . . 10 1 4 22 8 13 Total Turns 2379 | . . . . . . . . . . . . 74 12 34 373 109 13 . 2 . 122 . 20 . . . 273 6 59 287 150 845 Longest Duration 463 | . . . . . . . . . . . . 66 12 12 65 36 13 . 2 . 39 . 20 . . . 64 6 24 47 38 463 Robots Corrupted 16 | . . . . . . . . . . . . . . . 1 . . . . . . . . . . . 6 . . 9 . . Combat Hostiles 15 | . . . . . . . . . . . . . . . 1 . . . . . . . . . . . 5 . . 9 . . Parts Fried 54 | . . . . . . . . 1 . . . . . . 14 . . . . . 19 . . 2 1 . 12 . . 5 . . Impact Corruptions 29 | . . . . . . . . 1 . . 1 . . . . . . . . . 21 . . 4 1 1 . . . . . . Robots Melted 17 | . . . . 1 . . . . . . . . . . . . . . . . . . . . . . . . . 4 . 12 Combat Hostiles 16 | . . . . 1 . . . . . . . . . . . . . . . . . . . . . . . . . 3 . 12 Parts Melted 51 | . 1 . 1 1 . . . . . . . 2 . 1 . 1 . . . . 3 . . . . . . . 1 11 3 26 Heat Transferred 25534 | . 450 25 1201 555 . . . . . . . 537 25 222 909 2146 296 . 111 660 1221 148 111 . . . 2331 . 407 2914 1517 9748 Parts Sabotaged 3 | . . . . . . . . . . . . . . . 3 . . . . . . . . . . . . . . . . . Parts Stolen . | . . . . . . . . . . . . . . . . . . . . . . . . . . . . . . . . . Parts Stripped 18 | . . . . . . . . . . . . . . . . . . . . . . . . . . . . . 18 . . . Power Chain Reactions 2 | . . . 1 . . . . . . . . . . . 1 . . . . . . . . . . . . . . . . . Alert | -11 -10 -10 -9 -9 -8 -7 -7 -7 -7 -6 -6 -6 -6 -6 -6 -5 -5 -5 -5 -4 -4 -4 -4 -4 -3 -3 -3 -2 -2 -2 -1 -1 ------- Run | Yrd Mat Min Mat Min Mat Fac Low Low Dat Pro Fac Ext Cet Arc Hub Fac Upp Upp War Pro Fac Upp Upp Zhi Pro Res Tes Res Qua Sec Acc Com Peak Influence 1941 | . 137 203 371 178 335 316 . . . . 258 695 552 562 1941 1199 . . . . 390 . . . . 19 531 202 176 592 596 410 Initial 945 | . . 53 . 78 1 111 . . . . . 126 388 220 130 945 . . . . 56 . . . . . . 37 91 17 228 136 Average 291 | . 65 84 172 50 187 161 . . . . 37 198 454 424 971 985 . . . . 257 . . . . 3 284 125 73 301 326 162 Maximum Alert Level 5 | . . 1 1 . 1 1 . . . . 1 2 2 2 5 4 . . . . 1 . . . . . 2 1 . 2 2 2 Low Security (%) 47 | . 100 94 77 100 52 62 . . . . 92 67 . . 8 . . . . . 20 . . . . 100 28 85 100 20 21 66 Level 1 34 | . . 5 22 . 47 37 . . . . 7 17 16 56 1 . . . . . 79 . . . . . 54 14 . 63 48 31 Level 2 9 | . . . . . . . . . . . . 15 83 43 23 . . . . . . . . . . . 17 . . 16 30 1 Level 3 4 | . . . . . . . . . . . . . . . 19 87 . . . . . . . . . . . . . . . . Level 4 3 | . . . . . . . . . . . . . . . 42 12 . . . . . . . . . . . . . . . . Level 5 . | . . . . . . . . . . . . . . . 4 . . . . . . . . . . . . . . . . . High Security . | . . . . . . . . . . . . . . . . . . . . . . . . . . . . . . . . . Max Security . | . . . . . . . . . . . . . . . . . . . . . . . . . . . . . . . . . Squads Dispatched 73 | . 1 . 2 . 1 6 . . . . 6 2 . . 14 4 . . . 1 8 . . . . 1 6 . 7 9 3 2 Investigation 10 | . . . 1 . 1 1 . . . . 2 . . . 2 1 . . . . 1 . . . . 1 . . . . . . Extermination 30 | . . . . . . 2 . . . . 2 . . . 2 1 . . . . 5 . . . . . 4 . 3 7 2 2 Reinforcement 19 | . 1 . 1 . . . . . . . 2 2 . . 5 . . . . . 2 . . . . . 2 . 1 2 1 . Assault 6 | . . . . . . . . . . . . . . . 3 2 . . . 1 . . . . . . . . . . . . Garrison 8 | . . . . . . 3 . . . . . . . . 2 . . . . . . . . . . . . . 3 . . . Intercept . | . . . . . . . . . . . . . . . . . . . . . . . . . . . . . . . . . Searches Triggered . | . . . . . . . . . . . . . . . . . . . . . . . . . . . . . . . . . Construction Impeded 3 | . . . 1 . . . . . . . . . . . 2 . . . . . . . . . . . . . . . . . Haulers Reinforced 2 | . . . . . . . . . . . 1 . . . . . . . . . 1 . . . . . . . . . . . Active Scanning Responses . | . . . . . . . . . . . . . . . . . . . . . . . . . . . . . . . . . Cargo Convoy Interrupts . | . . . . . . . . . . . . . . . . . . . . . . . . . . . . . . . . . Stealth | -11 -10 -10 -9 -9 -8 -7 -7 -7 -7 -6 -6 -6 -6 -6 -6 -5 -5 -5 -5 -4 -4 -4 -4 -4 -3 -3 -3 -2 -2 -2 -1 -1 --------- Run | Yrd Mat Min Mat Min Mat Fac Low Low Dat Pro Fac Ext Cet Arc Hub Fac Upp Upp War Pro Fac Upp Upp Zhi Pro Res Tes Res Qua Sec Acc Com Distress Signals 46 | . . . 2 . . 1 . . . . . 4 2 . 4 . . . 1 . 3 . . . 1 4 4 3 . 1 . 16 Communications Jammed 78 | . . . . . . . . . . . . . . . . . . . . . 12 . . . 1 . 2 . . 29 20 14 Distress Signals 63 | . . . . . . . . . . . . . . . . . . . . . 1 . . . . . 2 . . 28 18 14 Times Spotted 546 | . 8 4 28 4 28 18 9 3 . 4 13 31 9 13 52 20 2 . 41 18 29 . 7 . 2 2 36 5 7 45 27 81 Peak Tracking Total 13 | . 3 2 3 2 4 4 4 3 . 3 5 8 5 2 5 6 2 . 11 10 5 . 5 . 1 2 7 6 2 4 5 13 Tactical Retreats 20 | . . . . . . . 1 . . . . . . . 1 1 . . . . 4 . . . . . 7 2 . . 4 . Traps | -11 -10 -10 -9 -9 -8 -7 -7 -7 -7 -6 -6 -6 -6 -6 -6 -5 -5 -5 -5 -4 -4 -4 -4 -4 -3 -3 -3 -2 -2 -2 -1 -1 ------- Run | Yrd Mat Min Mat Min Mat Fac Low Low Dat Pro Fac Ext Cet Arc Hub Fac Upp Upp War Pro Fac Upp Upp Zhi Pro Res Tes Res Qua Sec Acc Com Traps Triggered 11 | . . . 1 . 1 1 . . . . . 2 . . . . . . . . 1 . . . . . 1 . . . 3 1 Indirectly . | . . . . . . . . . . . . . . . . . . . . . . . . . . . . . . . . . Trap Hack Attempts . | . . . . . . . . . . . . . . . . . . . . . . . . . . . . . . . . . Triggered . | . . . . . . . . . . . . . . . . . . . . . . . . . . . . . . . . . Disarmed . | . . . . . . . . . . . . . . . . . . . . . . . . . . . . . . . . . Reprogrammed . | . . . . . . . . . . . . . . . . . . . . . . . . . . . . . . . . . Reused . | . . . . . . . . . . . . . . . . . . . . . . . . . . . . . . . . . Traps Extracted . | . . . . . . . . . . . . . . . . . . . . . . . . . . . . . . . . . Installed . | . . . . . . . . . . . . . . . . . . . . . . . . . . . . . . . . . Triggered 16 | . . . . . . . . . . . 1 . . . . . 2 . 10 . . 1 1 . 1 . . . . . . . Machines | -11 -10 -10 -9 -9 -8 -7 -7 -7 -7 -6 -6 -6 -6 -6 -6 -5 -5 -5 -5 -4 -4 -4 -4 -4 -3 -3 -3 -2 -2 -2 -1 -1 ---------- Run | Yrd Mat Min Mat Min Mat Fac Low Low Dat Pro Fac Ext Cet Arc Hub Fac Upp Upp War Pro Fac Upp Upp Zhi Pro Res Tes Res Qua Sec Acc Com Machines Disabled 75 | . . 2 3 . 3 . . . . . 2 . . 5 25 . . . . . 5 . . . . . 9 3 5 10 . 3 Max in Single Turn 11 | . . 1 1 . 1 . . . . . 1 . . 1 11 . . . . . 2 . . . . . 1 1 1 1 . 1 Garrison Access 9 | . . . . . 1 . . . . . . . . . 1 1 . . . . 1 . . . . 1 1 2 . 1 . . Network Hub 3 | . . . . . . . . . . . . . . . 3 . . . . . . . . . . . . . . . . . Machines Repaired . | . . . . . . . . . . . . . . . . . . . . . . . . . . . . . . . . . Machines Dismantled . | . . . . . . . . . . . . . . . . . . . . . . . . . . . . . . . . . Machines Sabotaged . | . . . . . . . . . . . . . . . . . . . . . . . . . . . . . . . . . Overloaded Fab Kills . | . . . . . . . . . . . . . . . . . . . . . . . . . . . . . . . . . Hacking | -11 -10 -10 -9 -9 -8 -7 -7 -7 -7 -6 -6 -6 -6 -6 -6 -5 -5 -5 -5 -4 -4 -4 -4 -4 -3 -3 -3 -2 -2 -2 -1 -1 --------- Run | Yrd Mat Min Mat Min Mat Fac Low Low Dat Pro Fac Ext Cet Arc Hub Fac Upp Upp War Pro Fac Upp Upp Zhi Pro Res Tes Res Qua Sec Acc Com Machines Accessed 103 | . 2 1 3 . 8 7 . . 3 1 6 7 1 . 4 6 . 1 1 . 10 . 1 4 . 2 7 2 9 10 5 2 Terminals 60 | . 2 . 3 . 4 4 . . . 1 4 7 1 . 3 3 . . . . 6 . . . . . 5 1 5 6 3 2 Fabricators 5 | . . . . . . 1 . . . . 2 . . . . 1 . . . . 1 . . . . . . . . . . . Repair Stations 7 | . . . . . 1 1 . . . . . . . . . . . . . . 2 . . . . . 1 . 1 1 . . Recycling Units . | . . . . . . . . . . . . . . . . . . . . . . . . . . . . . . . . . Scanalyzers 9 | . . . . . 2 . . . . . . . . . . 1 . . . . . . . . . 1 . . 2 2 1 . Garrison Access 11 | . . . . . 1 1 . . . . . . . . 1 1 . . . . 1 . . . . 1 1 1 1 1 1 . Total Hacks 423 | . 8 1 9 . 24 16 . . 24 2 16 17 1 . 10 31 . 1 5 . 76 . 1 17 . 8 43 4 42 48 14 5 Successful 222 | . 2 1 4 . 13 8 . . 24 2 11 7 1 . 3 14 . 1 5 . 36 . 1 17 . 7 15 . 21 23 5 1 Failed 197 | . 5 . 4 . 10 8 . . . . 5 9 . . 7 17 . . . . 40 . . . . 1 28 4 21 25 9 4 Catastrophic 52 | . . . 1 . 3 4 . . . . . 1 . . 2 3 . . . . 11 . . . . . 8 1 4 7 5 2 Database Lockouts 4 | . 1 . 1 . 1 . . . . . . 1 . . . . . . . . . . . . . . . . . . . . Manual 174 | . 6 . 8 . 12 8 . . . . 8 10 1 . 4 18 . . 1 . 36 . . . . . 16 2 19 19 3 3 Terminals 259 | . 8 . 9 . 12 10 . . . 2 10 17 1 . 7 18 . . . . 53 . . . . . 34 2 25 34 12 5 Fabricators 16 | . . . . . . 1 . . . . 6 . . . . 4 . . . . 5 . . . . . . . . . . . Repair Stations 40 | . . . . . 2 3 . . . . . . . . . . . . . . 16 . . . . . 6 . 7 6 . . Recycling Units . | . . . . . . . . . . . . . . . . . . . . . . . . . . . . . . . . . Scanalyzers 38 | . . . . . 8 . . . . . . . . . . 8 . . . . . . . . . 7 . . 8 6 1 . Garrison Access 21 | . . . . . 2 2 . . . . . . . . 3 1 . . . . 2 . . . . 1 3 2 2 2 1 . Terminal Hacks 113 | . 2 1 2 . 2 3 . . 24 2 4 5 1 . . 4 . 1 5 . 15 . 1 17 . . 8 . 5 7 4 . Record 13 | . . . . . . . . . 6 2 . . . . . . . . . . . . . 5 . . . . . . . . Part Schematic 21 | . . . . . 1 2 . . 10 . 1 1 . . . . . . . . 2 . . 4 . . . . . . . . Robot Schematic 5 | . . . . . . . . . 5 . . . . . . . . . . . . . . . . . . . . . . . Robot Analysis 8 | . 2 . 1 . . . . . . . . 1 . . . . . . . . . . . 4 . . . . . . . . Prototype ID Bank 17 | . . . . . 1 . . . 3 . . 1 . . . . . . 5 . 2 . . 4 . . 1 . . . . . Open Door 5 | . . 1 . . . . . . . . 1 . 1 . . . . 1 . . . . 1 . . . . . . . . . Level Access Points 1 | . . . . . . . . . . . . . . . . . . . . . . . . . . . . . . 1 . . Branch Access Points 4 | . . . . . . 1 . . . . 1 . . . . . . . . . 1 . . . . . . . 1 . . . Emergency Access Points 1 | . . . . . . . . . . . . . . . . . . . . . 1 . . . . . . . . . . . Machine Index 1 | . . . . . . . . . . . . . . . . . . . . . 1 . . . . . . . . . . . Terminal Index 3 | . . . . . . . . . . . . . . . . 1 . . . . 1 . . . . . 1 . . . . . Scanalyzer Index 1 | . . . . . . . . . . . . . . . . . . . . . . . . . . . . . . 1 . . Alert Level 7 | . . . . . . . . . . . . . . . . 1 . . . . 1 . . . . . . . 2 2 1 . Unreport Threat 10 | . . . . . . . . . . . . 2 . . . 1 . . . . . . . . . . 2 . . 3 2 . Locate Traps 4 | . . . . . . . . . . . 1 . . . . . . . . . 2 . . . . . . . 1 . . . Surveillance Status 2 | . . . . . . . . . . . . . . . . . . . . . 2 . . . . . . . . . . . Recall Investigation 1 | . . . . . . . . . . . . . . . . 1 . . . . . . . . . . . . . . . . Hauler Manifests 1 | . . . 1 . . . . . . . . . . . . . . . . . . . . . . . . . . . . . Registered Components 1 | . . . . . . . . . . . . . . . . . . . . . . . . . . . 1 . . . . . Registered Prototypes 1 | . . . . . . . . . . . . . . . . . . . . . . . . . . . 1 . . . . . Zone Layout 6 | . . . . . . . . . . . . . . . . . . . . . 2 . . . . . 2 . 1 . 1 . Fabricator Hacks 9 | . . . . . . . . . . . 5 . . . . 2 . . . . 2 . . . . . . . . . . . Network Status 2 | . . . . . . . . . . . 1 . . . . . . . . . 1 . . . . . . . . . . . Load Schematic 4 | . . . . . . . . . . . 2 . . . . 1 . . . . 1 . . . . . . . . . . . Build 3 | . . . . . . . . . . . 2 . . . . 1 . . . . . . . . . . . . . . . . Repair Station Hacks 24 | . . . . . 2 3 . . . . . . . . . . . . . . 10 . . . . . 2 . 5 2 . . Scan Component 16 | . . . . . 1 2 . . . . . . . . . . . . . . 7 . . . . . 2 . 3 1 . . Repair 8 | . . . . . 1 1 . . . . . . . . . . . . . . 3 . . . . . . . 2 1 . . Recycling Unit Hacks . | . . . . . . . . . . . . . . . . . . . . . . . . . . . . . . . . . Scanalyzer 23 | . . . . . 6 . . . . . . . . . . 4 . . . . . . . . . 6 . . 3 4 . . Insert Component 16 | . . . . . 3 . . . . . . . . . . 3 . . . . . . . . . 3 . . 3 4 . . Analyze 7 | . . . . . 3 . . . . . . . . . . 1 . . . . . . . . . 3 . . . . . . Garrison Access Hacks 6 | . . . . . 1 . . . . . . . . . . 1 . . . . 1 . . . . 1 1 . . 1 . . Seal Access 6 | . . . . . 1 . . . . . . . . . . 1 . . . . 1 . . . . 1 1 . . 1 . . Unauthorized Hacks 47 | . . . 2 . 2 2 . . . . 2 2 . . 3 3 . . . . 8 . . . . . 4 . 8 9 1 1 Terminals 44 | . . . 2 . 2 1 . . . . 2 2 . . 3 3 . . . . 7 . . . . . 4 . 7 9 1 1 Track 7 | . . . . . . . . . . . . . . . . . . . . . 1 . . . . . 1 . 1 4 . . Assimilate 1 | . . . . . . . . . . . . . . . . . . . . . 1 . . . . . . . . . . . Botnet 30 | . . . 2 . 2 1 . . . . 2 2 . . 1 3 . . . . 4 . . . . . 2 . 5 4 1 1 Operators 4 | . . . . . . . . . . . . . . . . . . . . . 1 . . . . . 1 . 1 1 . . Sabotage 2 | . . . . . . . . . . . . . . . 2 . . . . . . . . . . . . . . . . . Fabricators 1 | . . . . . . . . . . . . . . . . . . . . . 1 . . . . . . . . . . . Liberate 1 | . . . . . . . . . . . . . . . . . . . . . 1 . . . . . . . . . . . Repair Stations . | . . . . . . . . . . . . . . . . . . . . . . . . . . . . . . . . . Recycling Units . | . . . . . . . . . . . . . . . . . . . . . . . . . . . . . . . . . Scanalyzers 1 | . . . . . . . . . . . . . . . . . . . . . . . . . . . . . 1 . . . Researchers 1 | . . . . . . . . . . . . . . . . . . . . . . . . . . . . . 1 . . . Garrison Access 1 | . . . . . . 1 . . . . . . . . . . . . . . . . . . . . . . . . . . Watchers 1 | . . . . . . 1 . . . . . . . . . . . . . . . . . . . . . . . . . . Data Cores Recovered 1 | . . . . . . 1 . . . . . . . . . . . . . . . . . . . . . . . . . . Used . | . . . . . . . . . . . . . . . . . . . . . . . . . . . . . . . . . Hacking Detections 74 | . 2 . 2 . 6 7 . . . 1 5 4 . . 2 5 . . . . 9 . . . . 1 6 2 9 6 5 2 Full Trace Events 5 | . 1 . . . . . . . . . 2 . . . . 1 . . . . 1 . . . . . . . . . . . Feedback Events 1 | . . . . . . . . . . . . . . . . . . . . . 1 . . . . . . . . . . . Corruption 1 | . . . . . . . . . . . . . . . . . . . . . 1 . . . . . . . . . . . Feedback Blocked . | . . . . . . . . . . . . . . . . . . . . . . . . . . . . . . . . . Robot Schematics Acquired 5 | . . . . . . . . . 5 . . . . . . . . . . . . . . . . . . . . . . . Robots Built . | . . . . . . . . . . . . . . . . . . . . . . . . . . . . . . . . . Authchips . | . . . . . . . . . . . . . . . . . . . . . . . . . . . . . . . . . Time . | . . . . . . . . . . . . . . . . . . . . . . . . . . . . . . . . . Total Robot Build Rating . | . . . . . . . . . . . . . . . . . . . . . . . . . . . . . . . . . Part Schematics Acquired 27 | . . . . . 4 2 . . 10 . 1 1 . . . 1 . . . . 2 . . 4 . 2 . . . . . . Parts Built 4 | . . . . . . . . . . . 3 . . . . 1 . . . . . . . . . . . . . . . . Authchips . | . . . . . . . . . . . . . . . . . . . . . . . . . . . . . . . . . Time 261 | . . . . . . . . . . . 159 . . . . 102 . . . . . . . . . . . . . . . . Total Part Build Rating 26 | . . . . . . . . . . . 18 . . . . 8 . . . . . . . . . . . . . . . . Parts Repaired 8 | . . . . . 1 1 . . . . . . . . . . . . . . 3 . . . . . . . 2 1 . . Time 567 | . . . . . 108 30 . . . . . . . . . . . . . . 199 . . . . . . . 194 36 . . Parts Recycled . | . . . . . . . . . . . . . . . . . . . . . . . . . . . . . . . . . Recycled Matter . | . . . . . . . . . . . . . . . . . . . . . . . . . . . . . . . . . Retrieved Matter . | . . . . . . . . . . . . . . . . . . . . . . . . . . . . . . . . . Retrieved Components . | . . . . . . . . . . . . . . . . . . . . . . . . . . . . . . . . . Parts Scanalyzed 6 | . . . . . 3 . . . . . . . . . . 2 . . . . . . . . . 1 . . . . . . Part Schematics Acquired 6 | . . . . . 3 . . . . . . . . . . 1 . . . . . . . . . 2 . . . . . . Parts Damaged 1 | . . . . . . . . . . . . . . . . 1 . . . . . . . . . . . . . . . . Bothacking | -11 -10 -10 -9 -9 -8 -7 -7 -7 -7 -6 -6 -6 -6 -6 -6 -5 -5 -5 -5 -4 -4 -4 -4 -4 -3 -3 -3 -2 -2 -2 -1 -1 ------------ Run | Yrd Mat Min Mat Min Mat Fac Low Low Dat Pro Fac Ext Cet Arc Hub Fac Upp Upp War Pro Fac Upp Upp Zhi Pro Res Tes Res Qua Sec Acc Com Used RIF Installer . | . . . . . . . . . . . . . . . . . . . . . . . . . . . . . . . . . Robots Hacked . | . . . . . . . . . . . . . . . . . . . . . . . . . . . . . . . . . Non-combat . | . . . . . . . . . . . . . . . . . . . . . . . . . . . . . . . . . Combat . | . . . . . . . . . . . . . . . . . . . . . . . . . . . . . . . . . Robot Hacks Applied . | . . . . . . . . . . . . . . . . . . . . . . . . . . . . . . . . . Relay Couplers Released 3 | . . . . . . . . . . . . . . . 2 . . . . . . . . . . . . 1 . . . . Machine Destruction 3 | . . . . . . . . . . . . . . . 2 . . . . . . . . . . . . 1 . . . . Fabnet Peak Effective % . | . . . . . . . . . . . . . . . . . . . . . . . . . . . . . . . . . Robots Rewired 20 | . . . . . . . . . . . . 17 . . . . . . . 2 . . . . . . 1 . . . . . Allies Hacked . | . . . . . . . . . . . . . . . . . . . . . . . . . . . . . . . . . Hacks Repelled . | . . . . . . . . . . . . . . . . . . . . . . . . . . . . . . . . . Allies | -11 -10 -10 -9 -9 -8 -7 -7 -7 -7 -6 -6 -6 -6 -6 -6 -5 -5 -5 -5 -4 -4 -4 -4 -4 -3 -3 -3 -2 -2 -2 -1 -1 -------- Run | Yrd Mat Min Mat Min Mat Fac Low Low Dat Pro Fac Ext Cet Arc Hub Fac Upp Upp War Pro Fac Upp Upp Zhi Pro Res Tes Res Qua Sec Acc Com Total Allies 36 | . . 3 . . . . . . . . . 22 5 . . . . . . 2 3 . . . . . 1 . . . . . Largest Group 16 | . . 3 3 . . . . . . . . 16 16 6 4 . . . . 2 3 . . . . . 1 . . . . . Highest-Rated Group 781 | . . 40 40 . . . . . . . . 560 781 639 384 . . . . 77 141 . . . . . 157 . . . . . Highest-Rated Ally 159 | . . 16 16 . . . . . . . . 159 159 159 96 . . . . 47 47 . . . . . 157 . . . . . Total Orders 2 | . . . . . . . . . . . . . 1 . . . . . . . . . . . . . 1 . . . . . STAY 2 | . . . . . . . . . . . . . 1 . . . . . . . . . . . . . 1 . . . . . Ally Attacks 240 | . . 7 26 . . . . . . . . 81 55 6 33 . . . . 8 23 . . . . . 1 . . . . . Total Damage 6317 | . . 53 303 . . . . . . . . 1983 1573 176 1226 . . . . 173 714 . . . . . 116 . . . . . Kills 40 | . . . 7 . . . . . . . . 13 10 1 5 . . . . 1 3 . . . . . . . . . . . Allies Corrupted 5 | . . . . . . . . . . . . . . . 2 . . . . 2 . . . . . . 1 . . . . . Allies Melted 5 | . . . . . . . . . . . . . . . 1 . . . . . . . . . . . . 1 . . . 3 Intel | -11 -10 -10 -9 -9 -8 -7 -7 -7 -7 -6 -6 -6 -6 -6 -6 -5 -5 -5 -5 -4 -4 -4 -4 -4 -3 -3 -3 -2 -2 -2 -1 -1 ------- Run | Yrd Mat Min Mat Min Mat Fac Low Low Dat Pro Fac Ext Cet Arc Hub Fac Upp Upp War Pro Fac Upp Upp Zhi Pro Res Tes Res Qua Sec Acc Com Robot Analysis Total 8 | . 2 . 1 . . . . . . . . 1 . . . . . . . . . . . 4 . . . . . . . . Derelict Logs Recovered 9 | . . 1 . 1 . . 1 1 . 2 . . . . . . . . . 1 . 1 1 . . . . . . . . . Drone Launches . | . . . . . . . . . . . . . . . . . . . . . . . . . . . . . . . . . Drone Recoveries . | . . . . . . . . . . . . . . . . . . . . . . . . . . . . . . . . . Exploration | -11 -10 -10 -9 -9 -8 -7 -7 -7 -7 -6 -6 -6 -6 -6 -6 -5 -5 -5 -5 -4 -4 -4 -4 -4 -3 -3 -3 -2 -2 -2 -1 -1 ------------- Run | Yrd Mat Min Mat Min Mat Fac Low Low Dat Pro Fac Ext Cet Arc Hub Fac Upp Upp War Pro Fac Upp Upp Zhi Pro Res Tes Res Qua Sec Acc Com Turns Passed 35664 | . 220 607 912 986 2145 1414 903 1090 114 1479 1148 1557 328 753 1988 922 425 1030 890 1070 2954 799 916 292 541 550 2172 585 1565 2316 1238 1755 Spaces Moved 17568 | 1 96 479 530 386 1242 1001 705 819 100 578 644 717 162 316 760 405 232 458 413 689 1245 475 522 169 300 311 947 334 650 897 562 423 Core 1 | . . . 1 . . . . . . . . . . . . . . . . . . . . . . . . . . . . . Treads 11075 | . . . 221 386 213 . . . . 578 . 438 162 316 760 405 232 458 364 . 967 475 522 169 300 311 947 334 650 897 562 408 Legs 1685 | 1 96 479 93 . . . . . . . . . . . . . . . 49 689 278 . . . . . . . . . . . Wheels 4792 | . . . 215 . 1029 1001 705 819 100 . 644 279 . . . . . . . . . . . . . . . . . . . . Hover . | . . . . . . . . . . . . . . . . . . . . . . . . . . . . . . . . . Flight . | . . . . . . . . . . . . . . . . . . . . . . . . . . . . . . . . . Fastest Speed 105 | 120 120 120 105 160 120 108 108 108 108 242 123 150 160 160 160 162 162 162 113 113 108 160 160 160 160 160 160 160 160 160 158 150 Average Speed 152 | 120 120 120 135 239 135 111 108 112 108 242 141 167 174 160 160 162 162 162 165 125 154 160 160 160 160 160 160 160 160 160 160 172 Slowest Speed 480 | 120 120 120 250 240 240 123 123 123 123 242 160 235 235 160 243 162 162 162 480 182 240 160 160 160 160 160 160 160 250 163 163 305 Overloaded Moves . | . . . . . . . . . . . . . . . . . . . . . . . . . . . . . . . . . Propulsion Burnouts . | . . . . . . . . . . . . . . . . . . . . . . . . . . . . . . . . . Robots Hopped . | . . . . . . . . . . . . . . . . . . . . . . . . . . . . . . . . . Cave-ins Triggered 2 | . . . . . . . . . . . . . . . . . . . . 1 . . . . . . 1 . . . . . Spacefolds 4 | . . . . . . . . . . . . . . . . . . . . . . . . . . . . . . . . 4 Exploration Rate (%) 51 | 2 22 96 42 64 68 27 72 74 70 78 15 90 73 99 67 9 40 59 67 72 31 72 52 60 50 8 90 11 66 38 12 19 Regions Visited 32 Branch Regions 22 Pre-discovered Areas 8 | . . 1 . . . . . . 1 1 . . . . . . . . . 1 . 1 . 3 . . . . . . . . Known Exits Taken 26 | . . . . . 1 1 1 1 1 1 1 1 1 1 1 1 1 1 1 . 1 1 1 1 1 1 1 1 1 1 1 . Unknown Exits Taken 6 | 1 1 1 1 1 . . . . . . . . . . . . . . . 1 . . . . . . . . . . . . Scrap Searched 21 | . . 1 . 1 . . 3 3 . 3 . . . . . . 2 1 . 1 . 2 3 . 1 . . . . . . . Spaces Dug 211 | . . . . . . 6 . 66 . 36 2 . . . 24 7 . 2 . 2 15 3 2 . 1 . 14 2 4 12 9 4 Terrain Destroyed 1580 | . . 33 3 . 9 33 81 135 . 181 2 3 1 12 591 24 2 5 4 124 100 7 32 . 40 . 31 24 6 40 29 28 Melee 27 | . . . . . . 6 . 10 . . 2 . . . . . . . . . 7 . . . . . 2 . . . . . Projectile 372 | . . . . . . . . . . . . 3 1 12 99 24 2 5 4 33 33 7 17 . 2 . 29 4 6 40 29 22 AOE 1181 | . . 33 3 . 9 27 81 125 . 181 . . . . 492 . . . . 91 60 . 15 . 38 . . 20 . . . 6 Terrain Rammed . | . . . . . . . . . . . . . . . . . . . . . . . . . . . . . . . . . Walls Destroyed . | . . . . . . . . . . . . . . . . . . . . . . . . . . . . . . . . . Machines Disabled . | . . . . . . . . . . . . . . . . . . . . . . . . . . . . . . . . . Actions | -11 -10 -10 -9 -9 -8 -7 -7 -7 -7 -6 -6 -6 -6 -6 -6 -5 -5 -5 -5 -4 -4 -4 -4 -4 -3 -3 -3 -2 -2 -2 -1 -1 --------- Run | Yrd Mat Min Mat Min Mat Fac Low Low Dat Pro Fac Ext Cet Arc Hub Fac Upp Upp War Pro Fac Upp Upp Zhi Pro Res Tes Res Qua Sec Acc Com Total 24480 | . 146 498 656 421 1597 1249 824 934 105 636 808 985 196 505 1258 580 270 737 578 834 2103 502 583 184 347 363 1435 365 1129 1584 795 1273 Wait 4261 | . 21 . 31 12 158 146 92 60 . 19 85 74 10 132 292 79 19 253 111 75 639 8 10 . 34 44 206 6 372 418 139 716 Move 17526 | . 95 478 529 385 1241 1000 704 818 99 577 643 716 161 315 759 404 231 457 412 688 1244 474 521 168 299 310 946 333 649 897 561 412 Hop . | . . . . . . . . . . . . . . . . . . . . . . . . . . . . . . . . . Pick Up 213 | . 1 2 18 2 28 13 1 3 . 6 8 3 5 3 8 10 3 2 3 4 20 1 5 1 . 3 18 . 15 17 4 6 Fast Attach 220 | . . 2 12 2 15 3 . 2 2 . 4 3 3 12 4 6 2 3 11 3 18 2 8 5 . 1 35 2 22 27 4 7 Attach 120 | . . 2 1 . 2 2 . 3 . 7 4 1 . 1 13 5 2 1 1 6 8 . 4 . . 2 15 2 3 21 1 13 Detach 27 | . . . 2 . 2 . . . . . 1 . . . 3 . . . . . 1 . . . . . 6 . . 9 . 3 Swap 404 | . 1 1 3 . 16 26 13 15 2 10 20 14 . 5 55 15 4 3 11 8 49 3 10 1 5 . 28 10 11 37 16 12 Drop 363 | . . 2 19 4 44 15 1 2 2 2 11 10 9 12 4 10 4 7 11 2 31 3 13 5 . 2 50 1 34 40 5 8 Fire 1093 | . 27 10 40 9 89 37 13 14 . 15 27 44 8 25 117 48 5 11 18 33 50 11 12 . 5 . 120 11 20 116 63 95 Melee 82 | . . . . . . 7 . 17 . . 4 . . . . . . . . . 40 . . 4 4 . 3 . 3 . . . Ram 1 | . . . . . 1 . . . . . . . . . . . . . . . . . . . . . . . . . . . Kick 2 | . 1 1 . . . . . . . . . . . . . . . . . . . . . . . . . . . . . . Crush 28 | . . . 1 7 1 . . . . . 1 2 . . 3 3 . . . . 3 . . . . 1 1 . . 2 2 1 Escape Stasis 12 | . . . . . . . . . . . . 12 . . . . . . . . . . . . . . . . . . . . Rewire 128 | . . . . . . . . . . . . 106 . . . . . . . 15 . . . . . . 7 . . . . . Trap . | . . . . . . . . . . . . . . . . . . . . . . . . . . . . . . . . . Miscellaneous . | . . . . . . . . . . . . . . . . . . . . . . . . . . . . . . . . . Route ------- -11/Scrapyard -10/Materials -10/Mines (discovered 3 exits: *Mat x2 / [*Exi]) -9/Materials (discovered 2 exits: [*Min] / [*Sto]) -9/Mines -8/Materials (discovered 2 exits: *Fac x2) -7/Factory (discovered 4 exits: *Fac x2 / *Low x2) -7/Lower Caves -7/Lower Caves (discovered 2 exits: *Fac / *Dat) -7/Data Miner -6/Proximity Caves -6/Factory (discovered 4 exits: Low x2 / *Ext x2) -6/Extension (discovered 2 exits: *Fac / *Cet) -6/Cetus (discovered 2 exits: *Fac / *Arc) -6/Archives (discovered 3 exits: *Fac / *Hub x2) -6/Hub_04(d) (discovered 3 exits: *Fac x3) -5/Factory -5/Upper Caves -5/Upper Caves -5/Warlord -4/Proximity Caves -4/Factory (discovered 3 exits: *Res / *Upp x2) -4/Upper Caves -4/Upper Caves (discovered 2 exits: *Res / *Zhi) -4/Zhirov -3/Proximity Caves -3/Research -3/Testing -2/Research -2/Quarantine (discovered 2 exits: *Acc / *Sec) -2/Section 7 -1/Access -1/Command (discovered 2 exits: Sur x2) History --------- Turn | Location | Event 1 | -11/Scrapyard | Discovered new exit (range 0) 1 | -11/Scrapyard | Entered Materials 98 | -10/Materials | Discovered new exit (range 13) 101 | -10/Materials | Central database locked down 221 | -10/Materials | Entered Mines 264 | -10/Mines | Assisted by bots powering up and referring to "LRC-V3" 318 | -10/Mines | Build established: Mutant 338 | -10/Mines | Deemed a non-threat by the Exiles lab entrance 338 | -10/Mines | Discovered new exit (range 5) 381 | -10/Mines | Discovered new exit (range 12) 399 | -10/Mines | Met a Derelict who couldn't figure out how to use a Trap Extractor 574 | -10/Mines | Discovered new exit (range 7) 708 | -10/Mines | Learned location of Recycling (-9) 828 | -10/Mines | Entered Materials 828 | -9/Materials | Accompanied by 3 allies 828 | -9/Materials | Evolved 2 slots: Utility x2 833 | -9/Materials | Central database locked down 1287 | -9/Materials | Discovered new exit (range 7) 1587 | -9/Materials | Lost 3 allies 1639 | -9/Materials | Discovered new exit (range 16) 1740 | -9/Materials | Entered Mines 1930 | -9/Mines | Learned location of 1 exit from Materials 2025 | -9/Mines | Discovered new exit (range 8) 2275 | -9/Mines | Received a Rocket Launcher from a helpful Derelict 2469 | -9/Mines | Found a damaged Exp. Sensor Array with a note attached 2475 | -9/Mines | Found Prototype Device 2475 | -9/Mines | Identified Exp. Sensor Array 2726 | -9/Mines | Entered Materials 2726 | -8/Materials | Evolved 2 slots: Propulsion x1, Weapon x1 2727 | -8/Materials | Identified exit to Factory 3057 | -8/Materials | Build established: Scavenger-Tank 3681 | -8/Materials | Repaired Exp. Sensor Array 4103 | -8/Materials | Build established: Tank 4529 | -8/Materials | Build established: Gunner 4738 | -8/Materials | Discovered exit to Factory (range 15) 4739 | -8/Materials | Central database locked down 4871 | -8/Materials | Entered Factory 4871 | -7/Factory | Evolved 2 slots: Propulsion x1, Utility x1 5177 | -7/Factory | Build established: Skirmisher 5431 | -7/Factory | Repaired Enh. Autogun 5476 | -7/Factory | Garrison activated, responded to threat 5656 | -7/Factory | Discovered new exit (range 16) 5675 | -7/Factory | Identified exit to Factory 5702 | -7/Factory | Identified exit to Lower Caves 6004 | -7/Factory | Discovered exit to Factory (range 16) 6285 | -7/Factory | Entered Lower Caves 6473 | -7/Lower Caves | Attracted the attention of an 0b10 checkpoint 6610 | -7/Lower Caves | Learned Factory garrison access intel 7017 | -7/Lower Caves | Discovered new exit (range 15) 7034 | -7/Lower Caves | Identified exit to Lower Caves 7188 | -7/Lower Caves | Entered another Lower Caves area 7472 | -7/Lower Caves | Discovered exit to Factory (range 8) 7764 | -7/Lower Caves | Learned Factory terminal intel 7977 | -7/Lower Caves | Discovered new exit (range 10) 8113 | -7/Lower Caves | Found Alien Artifact 8113 | -7/Lower Caves | Identified Core Expander 8113 | -7/Lower Caves | Installed Core Expander, added new Utility slot 8277 | -7/Lower Caves | Identified exit to Data Miner 8278 | -7/Lower Caves | Entered Data Miner 8279 | -7/Data Miner | Discovered new exit (range 6) 8300 | -7/Data Miner | Met Data Miner 8331 | -7/Data Miner | Learned location of Section 7 (-2) 8331 | -7/Data Miner | Acquired the access code to Warlord's prototype stash 8341 | -7/Data Miner | Received God Mode back door access code from Data Miner 8388 | -7/Data Miner | Identified exit to Proximity Caves 8392 | -7/Data Miner | Entered Proximity Caves 8433 | -6/Proximity Caves | Lost 4 parts (1p1n2w) 8481 | -6/Proximity Caves | Learned location of Zion (-6) 8576 | -6/Proximity Caves | Learned Factory interactive machine intel 9806 | -6/Proximity Caves | Discovered exit to Factory (range 15) 9871 | -6/Proximity Caves | Entered Factory 9871 | -6/Factory | Evolved 2 slots: Utility x2 9872 | -6/Factory | Loaded intel: 54 interactive machine locations 9873 | -6/Factory | Loaded intel: 28 terminal locations 9874 | -6/Factory | Loaded intel: 4 garrison access locations 10542 | -6/Factory | Build established: Assassin 10617 | -6/Factory | Fabricated Hvy. Treads? 10818 | -6/Factory | Identified exit to Lower Caves 10818 | -6/Factory | Identified exit to Extension 10893 | -6/Factory | Fabricated Lyr. Heavy Armor Plating (x1) 11019 | -6/Factory | Entered Extension 11274 | -6/Extension | Build established: Skirmisher 11523 | -6/Extension | Central database locked down 11621 | -6/Extension | Rescued a captive Derelict 11658 | -6/Extension | Rescued a captive Derelict 11807 | -6/Extension | Spotted B-75 Beast 11829 | -6/Extension | Spotted B-75 Beast 11830 | -6/Extension | Allies destroyed B-75 Beast 11880 | -6/Extension | Lost 5 allies 11882 | -6/Extension | Destroyed B-75 Beast 12029 | -6/Extension | Rescued A7 12109 | -6/Extension | Rescued a captive Derelict 12110 | -6/Extension | Rescued a captive Derelict 12485 | -6/Extension | Build established: Commander-Gunner 12536 | -6/Extension | Discovered new exit (range 10) 12538 | -6/Extension | Discovered new exit (range 6) 12571 | -6/Extension | Identified exit to Cetus 12576 | -6/Extension | Entered Cetus 12576 | -6/Cetus | Accompanied by 16 allies (A7) 12581 | -6/Cetus | Acquired a Cetus Manufacturing Module code from A7 12598 | -6/Cetus | Spotted Cetus Guard 12600 | -6/Cetus | Spotted Cetus Guard 12601 | -6/Cetus | Spotted Cetus Guard 12613 | -6/Cetus | Allies destroyed Cetus Guard 12613 | -6/Cetus | Spotted Cetus Guard 12622 | -6/Cetus | Allies destroyed Cetus Guard 12626 | -6/Cetus | Allies destroyed Cetus Guard 12631 | -6/Cetus | Allies destroyed Cetus Guard 12668 | -6/Cetus | Lost 10 allies 12721 | -6/Cetus | Started Cetus Manufacturing Module 12733 | -6/Cetus | Escorted A7 to Cetus Mainframe 12742 | -6/Cetus | Discovered new exit (range 22) 12746 | -6/Cetus | Manufactured an Enhanced Grunt 12771 | -6/Cetus | Manufactured an Enhanced Grunt 12772 | -6/Cetus | Spotted Cetus Guard 12774 | -6/Cetus | Spotted Cetus Guard 12777 | -6/Cetus | Spotted Cetus Guard 12779 | -6/Cetus | Destroyed Cetus Guard 12782 | -6/Cetus | Destroyed Cetus Guard 12783 | -6/Cetus | Spotted Cetus Guard 12785 | -6/Cetus | Destroyed Cetus Guard 12790 | -6/Cetus | Allies destroyed Cetus Guard 12796 | -6/Cetus | Manufactured an Enhanced Grunt 12800 | -6/Cetus | Discovered new exit (range 22) 12817 | -6/Cetus | Met Revision 17 12821 | -6/Cetus | Manufactured an Enhanced Grunt 12827 | -6/Cetus | System corruption reached 10% 12846 | -6/Cetus | Manufactured an Enhanced Grunt 12894 | -6/Cetus | Identified exit to Archives 12904 | -6/Cetus | Entered Archives 12904 | -6/Archives | Accompanied by 6 allies (A7) 12909 | -6/Archives | Received a hacking code to weaken MAIN.C 12988 | -6/Archives | Discovered new exit (range 22) 13045 | -6/Archives | Discovered new exit (range 21) 13053 | -6/Archives | Discovered new exit (range 20) 13179 | -6/Archives | Found Prototype Device 13179 | -6/Archives | Identified Exp. Thermal Shield 13290 | -6/Archives | Build established: Scavenger-Gunner 13646 | -6/Archives | Identified exit to Hub_04(d) 13657 | -6/Archives | Entered Hub_04(d) 13657 | -6/Hub_04(d) | Accompanied by 4 allies 13848 | -6/Hub_04(d) | Network Hub disabled 14348 | -6/Hub_04(d) | Garrison activated, responded to threat 14357 | -6/Hub_04(d) | First assault squad dispatched 14442 | -6/Hub_04(d) | Destroyed 7 combat bots 14466 | -6/Hub_04(d) | Discovered new exit (range 22) 14544 | -6/Hub_04(d) | Identified exit to Factory 14566 | -6/Hub_04(d) | Garrison activated, responded to threat 14838 | -6/Hub_04(d) | Discovered exit to Factory (range 21) 14903 | -6/Hub_04(d) | Discovered exit to Factory (range 15) 15020 | -6/Hub_04(d) | Spotted Lightning 15023 | -6/Hub_04(d) | Spotted Lightning 15024 | -6/Hub_04(d) | Spotted Lightning 15047 | -6/Hub_04(d) | Build established: Scavenger-Skirmisher 15243 | -6/Hub_04(d) | Spotted Lightning 15246 | -6/Hub_04(d) | Spotted Lightning 15269 | -6/Hub_04(d) | Destroyed Lightning 15294 | -6/Hub_04(d) | Destroyed Lightning 15294 | -6/Hub_04(d) | Spotted Lightning 15297 | -6/Hub_04(d) | Destroyed Lightning 15309 | -6/Hub_04(d) | Lost 5 parts (2n2u1w) 15325 | -6/Hub_04(d) | Found Prototype Energy Cannon 15328 | -6/Hub_04(d) | Found Prototype Device 15451 | -6/Hub_04(d) | Identified Exp. EM Disruption Field 15544 | -6/Hub_04(d) | Found Prototype Energy Cannon 15563 | -6/Hub_04(d) | Network Hub disabled 15563 | -6/Hub_04(d) | Network Hub disabled 15638 | -6/Hub_04(d) | Core integrity fell below 50% 15645 | -6/Hub_04(d) | Entered Factory 15645 | -5/Factory | Evolved 2 slots: Propulsion x2 15836 | -5/Factory | Identified EMDS (x2) 15985 | -5/Factory | Build established: Scavenger-Tank 16030 | -5/Factory | Fabricated Exp. Sensor Array? 16245 | -5/Factory | First assault squad dispatched 16501 | -5/Factory | Discovered new exit (range 15) 16522 | -5/Factory | Identified exit to Upper Caves 16567 | -5/Factory | Entered Upper Caves 16858 | -5/Upper Caves | Encountered a Warlord checkpoint 16892 | -5/Upper Caves | Build established: Scavenger-Skirmisher 16956 | -5/Upper Caves | Discovered new exit (range 6) 16963 | -5/Upper Caves | Identified exit to Upper Caves 16992 | -5/Upper Caves | Entered another Upper Caves area 17785 | -5/Upper Caves | Encountered a Warlord checkpoint 17949 | -5/Upper Caves | Discovered new exit (range 16) 17980 | -5/Upper Caves | Identified exit to Warlord 18022 | -5/Upper Caves | Entered Warlord 18378 | -5/Warlord | Met Warlord 18398 | -5/Warlord | Opened Warlord's prototype stash 18403 | -5/Warlord | Warlord's base attacked by MAIN.C 18410 | -5/Warlord | Found Prototype Device 18410 | -5/Warlord | Identified System Purifier 18418 | -5/Warlord | Found Prototype Processor 18418 | -5/Warlord | Identified Exp. Targeting Computer 18431 | -5/Warlord | Found Prototype Reactor 18752 | -5/Warlord | Spotted Striker 18753 | -5/Warlord | Warlord forces counterattacked 18791 | -5/Warlord | Spotted Executioner 18828 | -5/Warlord | Lost 4 parts (4n) 18833 | -5/Warlord | Spotted Striker 18845 | -5/Warlord | Spotted Executioner 18872 | -5/Warlord | Build established: Scavenger-Tank 18888 | -5/Warlord | Lost 9 allies 18897 | -5/Warlord | Discovered new exit (range 12) 18907 | -5/Warlord | Identified exit to Proximity Caves 18912 | -5/Warlord | Entered Proximity Caves 18965 | -4/Proximity Caves | Learned location of Quarantine (-2) 19175 | -4/Proximity Caves | Build established: Scavenger-Skirmisher 19541 | -4/Proximity Caves | Attracted the attention of an 0b10 outpost 19572 | -4/Proximity Caves | Crushed by falling debris 19591 | -4/Proximity Caves | System corruption reached 10% 19594 | -4/Proximity Caves | Destroyed 7 combat bots 19648 | -4/Proximity Caves | Lost 7 parts (3n3u1w) 19887 | -4/Proximity Caves | System corruption reached 30% 19965 | -4/Proximity Caves | Discovered new exit (range 4) 19982 | -4/Proximity Caves | Entered Factory 19982 | -4/Factory | Evolved 2 slots: Power x1, Utility x1 20163 | -4/Factory | Identified exit to Upper Caves 20709 | -4/Factory | Build established: Scavenger-Mutant 20943 | -4/Factory | Discovered new exit (range 14) 21321 | -4/Factory | Identified exit to Research 21516 | -4/Factory | Repaired Imp. Heavy Armor Plating 21625 | -4/Factory | Repaired Centrium Medium Armor Plating 21980 | -4/Factory | Lost 3 parts (1p2u) 22262 | -4/Factory | Build established: Scavenger-Skirmisher 22295 | -4/Factory | Repaired Broken Adv. KE Penetrator 22936 | -4/Factory | Entered Upper Caves 22960 | -4/Upper Caves | Learned location of Testing (-3) 23556 | -4/Upper Caves | Discovered new exit (range 18) 23636 | -4/Upper Caves | Build established: Skirmisher 23732 | -4/Upper Caves | Identified exit to Upper Caves 23735 | -4/Upper Caves | Entered another Upper Caves area 23736 | -4/Upper Caves | Discovered exit to Research (range 20) 24109 | -4/Upper Caves | Build established: Scavenger-Skirmisher 24358 | -4/Upper Caves | Learned Research garrison access intel 24621 | -4/Upper Caves | Discovered new exit (range 14) 24640 | -4/Upper Caves | Identified exit to Zhirov 24651 | -4/Upper Caves | Entered Zhirov 24651 | -4/Zhirov | Discovered new exit (range 3) 24680 | -4/Zhirov | Met Zhirov 24709 | -4/Zhirov | Learned location of Command (-1) 24723 | -4/Zhirov | Zhirov requested help retrieving the SGEMP Prototype 24750 | -4/Zhirov | Found Alien Artifact 24750 | -4/Zhirov | Identified Integrated Dissipator 24750 | -4/Zhirov | Installed Integrated Dissipator, increased core heat dissipation (+20) 24873 | -4/Zhirov | Found Alien Artifact 24940 | -4/Zhirov | Identified exit to Proximity Caves 24943 | -4/Zhirov | Entered Proximity Caves 25417 | -3/Proximity Caves | Discovered exit to Research (range 18) 25484 | -3/Proximity Caves | Entered Research 25484 | -3/Research | Evolved 2 slots: Utility x2 25485 | -3/Research | Loaded intel: 4 garrison access locations 25522 | -3/Research | Identified Vortex Chain Reactor 25590 | -3/Research | Discovered new exit (range 11) 25606 | -3/Research | Identified exit to Testing 25639 | -3/Research | Build established: Assassin 25684 | -3/Research | Revision forces began assault on 0b10 25770 | -3/Research | Met up with Revision 17++ 26034 | -3/Research | Entered Testing 26396 | -3/Testing | Found Prototype Energy Gun 26396 | -3/Testing | Identified Warp Gun 26518 | -3/Testing | Found Prototype Energy Cannon 26518 | -3/Testing | Identified Disintegrator 26558 | -3/Testing | Found Prototype Protection 26558 | -3/Testing | Identified Centrium Heavy Armor Plating 26728 | -3/Testing | Build established: Skirmisher 26770 | -3/Testing | Spotted PY-P4WO6BO8G4 26786 | -3/Testing | Rewired PY-P4WO6BO8G4 26796 | -3/Testing | Discovered new exit (range 22) 26864 | -3/Testing | Identified exit to Research 26948 | -3/Testing | Found Prototype Processor 26948 | -3/Testing | Identified Exp. Signal Interpreter 26963 | -3/Testing | Found Prototype Launcher 26963 | -3/Testing | Identified Hellfire Missile Launcher 27099 | -3/Testing | Found Prototype Device 27099 | -3/Testing | Identified Exp. Hardlight Generator 27318 | -3/Testing | Found Prototype Energy Cannon 27318 | -3/Testing | Identified Cld. Nova Cannon 27355 | -3/Testing | Spotted Alpha 7 27402 | -3/Testing | System corruption reached 10% 27496 | -3/Testing | Destroyed Alpha 7 27517 | -3/Testing | Found Prototype Energy Cannon 27517 | -3/Testing | Identified Potential Cannon 27673 | -3/Testing | Build established: Tank 27926 | -3/Testing | Found Prototype Energy Cannon 27926 | -3/Testing | Identified Hpw. Disruptor Cannon 27939 | -3/Testing | Crushed by falling debris 28101 | -3/Testing | Found Exp. Signal Interpreter 28190 | -3/Testing | System corruption reached 30% 28206 | -3/Testing | Entered Research 28206 | -2/Research | Warlord forces began assault on 0b10 28206 | -2/Research | Evolved 2 slots: Power x1, Utility x1 28316 | -2/Research | Research machine network offline 28318 | -2/Research | Met up with Warlord 28534 | -2/Research | Found Prototype Processor 28534 | -2/Research | Identified Exp. Core Analyzer 28711 | -2/Research | Discovered new exit (range 19) 28712 | -2/Research | Spotted Striker 28740 | -2/Research | Spotted B-90 Cyclops 28765 | -2/Research | Build established: Scavenger-Skirmisher 28789 | -2/Research | Identified exit to Quarantine 28791 | -2/Research | Entered Quarantine 28801 | -2/Quarantine | Lost 9 allies 28814 | -2/Quarantine | Found Alien Impact Weapon 28936 | -2/Quarantine | Repaired Broken Imp. Heavy Treads 29045 | -2/Quarantine | Repaired Centrium Medium Armor Plating 29170 | -2/Quarantine | Found Alien Artifact 29226 | -2/Quarantine | Cryocooling Duct disabled 29241 | -2/Quarantine | Ambient heat levels rising (+20) 29241 | -2/Quarantine | Non-combat units ordered to evacuate 29254 | -2/Quarantine | Discovered new exit (range 9) 29256 | -2/Quarantine | Identified Core Stripper 29269 | -2/Quarantine | Identified exit to Access 29406 | -2/Quarantine | Found Alien Artifact 29666 | -2/Quarantine | Identified Core Reset Matrix 29666 | -2/Quarantine | Identified Subatomic Replicator 29968 | -2/Quarantine | Spotted Fortress 29980 | -2/Quarantine | Destroyed Fortress 30017 | -2/Quarantine | Found Prototype Device 30017 | -2/Quarantine | Identified Thermal Barrier 30020 | -2/Quarantine | Found Prototype Device 30020 | -2/Quarantine | Identified Exp. Force Field 30077 | -2/Quarantine | Found Centrium Heavy Armor Plating 30206 | -2/Quarantine | Discovered new exit (range 6) 30213 | -2/Quarantine | Identified exit to Section 7 30356 | -2/Quarantine | Entered Section 7 30357 | -2/Section 7 | Spotted B-90 Cyclops 30420 | -2/Section 7 | Destroyed B-90 Cyclops 30737 | -2/Section 7 | Spotted S7 Guard 30758 | -2/Section 7 | Destroyed S7 Guard 30782 | -2/Section 7 | Found Alien Artifact 30856 | -2/Section 7 | Identified Core Physics Calibrator 30892 | -2/Section 7 | Spotted S7 Guard 30909 | -2/Section 7 | Destroyed S7 Guard 30922 | -2/Section 7 | Found Alien Artifact 30928 | -2/Section 7 | Found Corrupted Prototype Protection 30989 | -2/Section 7 | Identified Integrated Thermoelectric Network 30989 | -2/Section 7 | Installed Integrated Thermoelectric Network, gained heat-energy exchange potential 31104 | -2/Section 7 | Spotted S7 Guard 31272 | -2/Section 7 | Repaired Centrium Heavy Armor Plating 31389 | -2/Section 7 | Found Alien Artifact 31389 | -2/Section 7 | Identified Integrity Redistributor 31389 | -2/Section 7 | Used Integrity Redistributor, redistributed integrity from core (-212) 31514 | -2/Section 7 | Found Alien Artifact 31514 | -2/Section 7 | Identified Microwarp Drive 31580 | -2/Section 7 | Spotted S7 Guard 31599 | -2/Section 7 | Destroyed S7 Guard 31611 | -2/Section 7 | Found Alien Artifact 31618 | -2/Section 7 | Found Corrupted Prototype Protection 31699 | -2/Section 7 | Build established: Scavenger-Tank 31913 | -2/Section 7 | Destroyed 7 combat bots 32049 | -2/Section 7 | Identified Core Regenerator 32099 | -2/Section 7 | Found Alien Artifact 32159 | -2/Section 7 | Identified Spacefold Activator 32386 | -2/Section 7 | Found Prototype Device 32386 | -2/Section 7 | Identified Exp. Transmission Jammer 32474 | -2/Section 7 | Identified Hvy. Regenerative Plating (x2) 32475 | -2/Section 7 | System corruption reached 10% 32551 | -2/Section 7 | Build established: Scavenger-Skirmisher 32672 | -2/Section 7 | Entered Access 32672 | -1/Access | Evolved 2 slots: Power x1, Weapon x1 33182 | -1/Access | Build established: Generator-Skirmisher 33196 | -1/Access | Discovered new exit (range 20) 33757 | -1/Access | Build established: Generator-Gunner 33908 | -1/Access | Identified exit to Command 33910 | -1/Access | Entered Command 34485 | -1/Command | Spotted Combat Programmer 34485 | -1/Command | Spotted Combat Programmer 34549 | -1/Command | Used Subatomic Replicator to replicate Cld. Nova Cannon 34571 | -1/Command | Met MAIN.C 34611 | -1/Command | Destroyed MAIN.C Shell 34613 | -1/Command | Surrendered to MAIN.C 34613 | -1/Command | Loaded intel: 67 machine locations 34613 | -1/Command | Loaded intel: 86 trap records 34613 | -1/Command | Identified exit to Surface 34613 | -1/Command | Discovered exit to Surface (range 95) 34613 | -1/Command | Discovered exit to Surface (range 41) 34648 | -1/Command | Found Prototype Reactor 35050 | -1/Command | MAIN.C activated Command garrisons 35090 | -1/Command | Unknown forces attacked Command 35090 | -1/Command | Spotted EQ-002 35090 | -1/Command | Spotted EQ-005 35090 | -1/Command | Spotted EQ-003 35090 | -1/Command | Spotted EQ-006 35090 | -1/Command | Spotted EQ-015 35090 | -1/Command | Spotted EQ-004 35090 | -1/Command | Spotted EQ-001 35093 | -1/Command | Destroyed EQ-005 35150 | -1/Command | Lost 6 allies 35180 | -1/Command | Spotted EQ-018 35180 | -1/Command | Spotted EQ-020 35180 | -1/Command | Spotted EQ-021 35180 | -1/Command | Spotted EQ-022 35183 | -1/Command | Destroyed EQ-021 35211 | -1/Command | Phase Generator disabled 35254 | -1/Command | Lost 20 allies 35289 | -1/Command | Spotted EQ-039 35289 | -1/Command | Spotted EQ-040 35289 | -1/Command | Spotted EQ-038 35320 | -1/Command | Lost 3 allies 35354 | -1/Command | Spotted EQ-010 35356 | -1/Command | Spotted EQ-026 35356 | -1/Command | Spotted EQ-037 35356 | -1/Command | Spotted EQ-058 35357 | -1/Command | Spotted EQ-046 35359 | -1/Command | Spotted EQ-047 35359 | -1/Command | Spotted EQ-044 35361 | -1/Command | Spotted EQ-042 35361 | -1/Command | Spotted EQ-024 35365 | -1/Command | Spotted EQ-019 35398 | -1/Command | Spotted EQ-082 35398 | -1/Command | Spotted EQ-061 35406 | -1/Command | Spotted EQ-060 35416 | -1/Command | All MAIN.C guards destroyed 35417 | -1/Command | Destroyed EQ-060 35450 | -1/Command | Spotted EQ-064 35461 | -1/Command | Destroyed EQ-064 35465 | -1/Command | Spotted EQ-072 35467 | -1/Command | Spotted EQ-049 35467 | -1/Command | Spotted EQ-062 35469 | -1/Command | Spotted EQ-068 35476 | -1/Command | Spotted EQ-077 35481 | -1/Command | Spotted EQ-054 35484 | -1/Command | Destroyed EQ-062 35495 | -1/Command | Lost 33 allies 35497 | -1/Command | Destroyed EQ-077 35500 | -1/Command | Spotted EQ-079 35502 | -1/Command | Spotted EQ-083 35506 | -1/Command | Spotted EQ-084 35507 | -1/Command | Spotted EQ-096 35509 | -1/Command | Spotted EQ-063 35511 | -1/Command | Spotted EQ-056 35513 | -1/Command | Spotted EQ-080 35514 | -1/Command | Destroyed EQ-096 35515 | -1/Command | Spotted EQ-103 35518 | -1/Command | System corruption reached 10% 35524 | -1/Command | Destroyed EQ-083 35535 | -1/Command | Spotted EQ-025 35539 | -1/Command | Spotted EQ-100 35540 | -1/Command | Spotted EQ-094 35548 | -1/Command | Destroyed EQ-103 35558 | -1/Command | Core integrity fell below 50% 35561 | -1/Command | Destroyed EQ-080 35568 | -1/Command | Destroyed EQ-056 35579 | -1/Command | Destroyed EQ-094 35587 | -1/Command | Destroyed EQ-025 35595 | -1/Command | Spotted EQ-093 35599 | -1/Command | Spotted EQ-099 35603 | -1/Command | Spotted EQ-101 35609 | -1/Command | Spotted EQ-110 35611 | -1/Command | Spotted EQ-111 35615 | -1/Command | Destroyed EQ-110 35619 | -1/Command | Spotted EQ-112 35620 | -1/Command | Lost 10 parts (2p1n6u1w) 35623 | -1/Command | Spotted EQ-133 35625 | -1/Command | Destroyed EQ-099 35636 | -1/Command | Spotted EQ-113 35643 | -1/Command | Destroyed EQ-111 35644 | -1/Command | Spotted EQ-134 35647 | -1/Command | Core integrity fell below 20% 35647 | -1/Command | Spotted EQ-123 35649 | -1/Command | Spotted EQ-131 35652 | -1/Command | Destroyed EQ-112 35663 | -1/Command | Spotted EQ-092 35665 | -1/Command | Destroyed EQ-131 35665 | -1/Command | Destroyed by EQ-117 with Heavy Hardcell Cannon Last Messages --------------- 35657_ EQ-101 suffers critical hit (Destroy). 35658_ Centrium Medium Armor Plating destroyed. 35658_ Lrn. Phase Cannon destroyed. 35659_ System corrupted: Biometal Heavy Treads rejected. 35659_ Slug penetrates MAIN.C. 35660_ Acquired Biometal Heavy Treads. 35660_ EQ-133 knocked back. 35661_ Critical hit (Burn: +23). 35661_ Slug penetrates EQ-101. 35661_ Slug penetrates MAIN.C. 35662_ Imp. Quantum Reactor destroyed. 35662_ Critical hit (Meltdown: +250). 35663_ Critical hit (Destroy). 35663_ Biometal Heavy Treads destroyed. 35663_ Slug penetrates MAIN.C. 35663_ Slug penetrates Reinforced Barrier. 35664_ Slug penetrates MAIN.C. 35664_ MAIN.C suffers critical hit (Destroy). 35665_ Destroyed Enh. Quantum Rifle. 35665_ EQ-131 suffers critical hit (Meltdown). Map ----- +----------------------------------------------------+ | #????# # #?????????????????????? | | #????# # "" #?????????????????????? | | #????# + """" #?????????????????????? | | ###### # """" #?????????????????????? | | # # # "" #?????????????????????? | | [ + # #?????????????????????? | | # + #?##################### | | # ### ## #?#???????????????????? | | ## ##?#+###+#######?#?################### | | ## #??# #??????#?#""""""" "" " =%!% | | #+###+#### #??# ??????#?#"" %= | | ! ## #??# #?????#?#"" "" [ % ] | | # #??# ! #????#?# " " % % !=* | | ## #?? ##??#?# [" !=%= | | ] ## ### !%% % #??#?# % ! ! [%== | | ## ## % #??#?# % =!=*=% %=%% | | ## < #; % ![%####?# =%!]%!=%* [* | | ## ## %[!=%!# ##?# %=%[%!%[ = * | | || #######; !!!%!!% #?# = =%%%%[%=%== | | | #????? ; *!=!=%] #?# [= %*=!!=% =%% | | #########????### !*=%%[=]! #?# %%!%%[ ! !!= | | ?????????????# ; !!#%!*%* #?# % !%![! " | | ???????????##### [[=Q% !=#?#!=/ =*= %% | | ???????????# % %%=%%][###!=* = " | | ?????????????# !!!!=! %! " """" | | ??????????????# ; %%@M%% Q]!![ " | | ###############""#;/ #%!!%%%== %[ % | | + + % #%=%!%#### % " | | ### %%%![!!#?# % "" | | #?# %% !##?# !% " " | | #?# #?################### | | ### ##???????????????????? | | Y""" + +! " ##################### | | """" ### " = #????????????????????? | | #######?# Q] Q ????????????????????? | | #?????# " ] ????????????????????? | | #?????# " Q # ????????????????????? | | #?????# ;##???????????????????? | | #?????# # %* #?????????????????????? | | #?????#######+###### = #?????????????????????? | | ########### ##### %%Q#########?????????????? | | + #?????????????? | | # T#?????????????? | | # ### #####+########"""##?????????????? | | # ######### ####"""##?????????????? | | # + !!*## #[][ =#?????????????? | | # # !!*## #]][ ] =#?????????????? | | ### # !**## #!!! =#?????????????? | | ### # ## #!!!**==#?????????????? | | #"" # ## "" #########?????????????? | +----------------------------------------------------+ Best States ------------- Heat Dissipation 159 Coolant Potential 100 Energy Generation 103 Energy Capacity 1200 Matter Stores 300 Matter Capacity 500 Sight Range 23 Robot Scan Range 20 Terrain Scan Range 20 Terrain Scan Density 135 ECM Strength 2 Jamming Range 22 EM Shielding 4 Armor Coverage 3600 Resistance: KI 30 Resistance: TH 50 Resistance: EM 75 Weapon Cycling 25 Phase Shifting 15 Evasion (%) 55 Targeting Accuracy 12 Core Analysis 9 Recoil Reduction 6 Kinecelleration 30 Offensive Hacking 22 Item Schematics ----------------- Exp. Sensor Array | -8/Materials | Scanalyzed Hrd. Medium Armor Plating | -8/Materials | Scanalyzed Hvy. Armor Plating | -8/Materials | Scanalyzed Lrn. Tractor Beam | -8/Materials | Hacked Arm. Treads | -7/Factory | Hacked Lightning Gun | -7/Factory | Hacked Combat Drone Bay | -7/Data Miner | Free Lgt. Regenerative Plating | -7/Data Miner | Free Biomechanical Wings | -7/Data Miner | Free Gravity Neutralizer | -7/Data Miner | Free Imp. Lightning Gun | -7/Data Miner | Free Hvy. Treads | -7/Data Miner | Free Lyr. Heavy Armor Plating | -7/Data Miner | Free Hvy. Shock Bomb Launcher | -7/Data Miner | Free Mic. Fission Core | -7/Data Miner | Free Quantum Capacitor | -7/Data Miner | Free Powered Armor | -6/Factory | Hacked Weapon Mount | -6/Extension | Hacked Hrd. Heavy Armor Plating | -5/Factory | Scanalyzed Adv. Hacking Suite | -4/Factory | Hacked Tri-rail Accelerator | -4/Factory | Hacked Assault Drone Bay | -4/Zhirov | Free Exp. Heat Sink | -4/Zhirov | Free Exp. Optical Array | -4/Zhirov | Free Imp. Arc Thrower | -4/Zhirov | Free Centrium Medium Armor Plating | -3/Research | Scanalyzed Adv. KE Penetrator | -3/Research | Scanalyzed Robot Schematics ------------------ H-55 Commando | -7/Data Miner | Free G-50 Soldier | -7/Data Miner | Free R-10 Processor | -7/Data Miner | Free S-27 Virus | -7/Data Miner | Free Y-54 Guardian | -7/Data Miner | Free Fabricated ------------ Hvy. Treads | x2 | -6/Factory Lyr. Heavy Armor Plating | x1 | -6/Factory Exp. Sensor Array | x1 | -5/Factory Alien Tech Used ----------------- Core Expander Integrated Dissipator Core Stripper Core Physics Calibrator Integrated Thermoelectric Network Integrity Redistributor Microwarp Drive Spacefold Activator Subatomic Replicator Achievements -------------- None Challenges ------------ None Game ------ Seed HugeStormDissipator Manual? 0 Play Time 05:40:07 Cumulative 242.6 hours Start 2024.05.21 @ 15:28:22 End 2024.05.27 @ 21:07:24 Sessions 25 Manual Loads 0 Difficulty Rogue Special Mode None Game No. 296 Rogue 296 Adventurer 0 Explorer 0 Win Type - Total 8 Types 4/1/0/1/1/0/0/1/0 Lore% 73 Gallery% 81 Achievement% 69 Wizard Run 0 Options --------- Layout 0 ASCII 0 Keyboard 0 Movement Numpad Keybinds 0 Fullscreen 1 Font 18/SmallcapsGlow Map View 76x50 Zoom Use 0% Tactical HUD 1 Map Filters NONE Filters NONE Steam 1 RUN: 53a9d9ee-b204-496a-aaf6-4ea99f99f4b2